Publisher Label,Publisher URI,"Supplier","Net Amount (£)","Organisational Unit","Merchant Category Code","Purpose","Payment Date"
"Wolverhampton City Council","http://opendatacommunities.org/id/metropolitan-district-council/wolverhampton","Amazon UK Marketplace","4.33","Blakenhall Commty & Healthy Living Ctr","5942","Books","30/11/2016"
"Wolverhampton City Council","http://opendatacommunities.org/id/metropolitan-district-council/wolverhampton","Amazon Svcs Europe,SAR","21.00","Technical Support","5942","Books","30/11/2016"
"Wolverhampton City Council","http://opendatacommunities.org/id/metropolitan-district-council/wolverhampton","WWW.VMSECURE.CO.UK","27.50","Technical Support","5046","Equipment - Purchase","30/11/2016"
"Wolverhampton City Council","http://opendatacommunities.org/id/metropolitan-district-council/wolverhampton","Amazon UK Marketplace","6.96","Global Budgets","5942","Books","30/11/2016"
"Wolverhampton City Council","http://opendatacommunities.org/id/metropolitan-district-council/wolverhampton","Amazon UK Marketplace","8.78","Global Budgets","5942","Books","30/11/2016"
"Wolverhampton City Council","http://opendatacommunities.org/id/metropolitan-district-council/wolverhampton","THE QUALITY HOTEL WOLV","96.67","Head of Service - CINCP","7011","Services - Supplies & Services to users","30/11/2016"
"Wolverhampton City Council","http://opendatacommunities.org/id/metropolitan-district-council/wolverhampton","Trainline","184.11","CIN/CP S17 SW Unit - Area 6","4112","Public Transport","30/11/2016"
"Wolverhampton City Council","http://opendatacommunities.org/id/metropolitan-district-council/wolverhampton","SPORTSDIRECT 192","19.98","Play General","5941","Equipment - Purchase","30/11/2016"
"Wolverhampton City Council","http://opendatacommunities.org/id/metropolitan-district-council/wolverhampton","ROYAL CARPETS","125.00","LAC Transitions Team","5713","Client Allowances","30/11/2016"
"Wolverhampton City Council","http://opendatacommunities.org/id/metropolitan-district-council/wolverhampton","Amazon UK Marketplace","16.34","Christmas Festivities","5942","Equipment - Purchase","30/11/2016"
"Wolverhampton City Council","http://opendatacommunities.org/id/metropolitan-district-council/wolverhampton","B&M RETAIL","13.32","Meals on Wheels","5310","Equipment - Purchase","30/11/2016"
"Wolverhampton City Council","http://opendatacommunities.org/id/metropolitan-district-council/wolverhampton","WWW.ET-FOUNDATION.","200.00","AES Staff Development","8220","Training Expenses","30/11/2016"
"Wolverhampton City Council","http://opendatacommunities.org/id/metropolitan-district-council/wolverhampton","REGISTRARS OFFICE","60.00","Head of Service - CINCP","8299","Services - Professional Fees","30/11/2016"
"Wolverhampton City Council","http://opendatacommunities.org/id/metropolitan-district-council/wolverhampton","SAINSBURYS (2340)","27.50","Mayoral Expenses","5411","Hospitality","30/11/2016"
"Wolverhampton City Council","http://opendatacommunities.org/id/metropolitan-district-council/wolverhampton","REGISTRARS OFFICE","21.00","CIN/CP S17 SW Unit - Area 1","8299","Printing","30/11/2016"
"Wolverhampton City Council","http://opendatacommunities.org/id/metropolitan-district-council/wolverhampton","WHEEL FREEDOM LTD","55.00","CIN/CP S17 SW Unit - Area 7","5047","Equipment - Hire","30/11/2016"
"Wolverhampton City Council","http://opendatacommunities.org/id/metropolitan-district-council/wolverhampton","DUDLEY MBC  INTERN","20.24","Adoption and Residence Team & Allowances","8999","Services - Professional Fees","30/11/2016"
"Wolverhampton City Council","http://opendatacommunities.org/id/metropolitan-district-council/wolverhampton","Trainline","237.15","Adoption and Residence Team & Allowances","4112","Public Transport","30/11/2016"
"Wolverhampton City Council","http://opendatacommunities.org/id/metropolitan-district-council/wolverhampton","RIBA ENTERPRISES LTD","175.00","Corporate Procurement Unit","5942","Books","30/11/2016"
"Wolverhampton City Council","http://opendatacommunities.org/id/metropolitan-district-council/wolverhampton","SETON","41.90","Technician","5099","Equipment - Purchase","30/11/2016"
"Wolverhampton City Council","http://opendatacommunities.org/id/metropolitan-district-council/wolverhampton","CURRYS S/S","1050.00","Mayoral Expenses","5732","Gratuities","30/11/2016"
"Wolverhampton City Council","http://opendatacommunities.org/id/metropolitan-district-council/wolverhampton","CUMMINGS BROTHERS LOCK","3.75","Public Conveniences","7399","R&M - Departmental planned (external)","30/11/2016"
"Wolverhampton City Council","http://opendatacommunities.org/id/metropolitan-district-council/wolverhampton","B&M RETAIL","34.35","EIP Locality 1","5310","Financial Assistance In Exceptional Circ","30/11/2016"
"Wolverhampton City Council","http://opendatacommunities.org/id/metropolitan-district-council/wolverhampton","TESCO STORES 5397","7.68","EIP Locality 1","5411","Comms - Postage","30/11/2016"
"Wolverhampton City Council","http://opendatacommunities.org/id/metropolitan-district-council/wolverhampton","WWW.TTS-GROUPS.CO.UK","39.57","EIP Locality 1","5943","Equipment - Purchase","30/11/2016"
"Wolverhampton City Council","http://opendatacommunities.org/id/metropolitan-district-council/wolverhampton","Amazon UK Marketplace","29.94","EIP Locality 1","5942","Equipment - Purchase","30/11/2016"
"Wolverhampton City Council","http://opendatacommunities.org/id/metropolitan-district-council/wolverhampton","ARGOS LTD","-39.99","Duke Street Bungalows","5310","Equipment - Purchase","30/11/2016"
"Wolverhampton City Council","http://opendatacommunities.org/id/metropolitan-district-council/wolverhampton","ARGOS LTD","39.99","Duke Street Bungalows","5310","Equipment - Purchase","30/11/2016"
"Wolverhampton City Council","http://opendatacommunities.org/id/metropolitan-district-council/wolverhampton","WWW.BRACKETSRUS.CO.UK","33.49","Duke Street Bungalows","5999","Equipment - Purchase","30/11/2016"
"Wolverhampton City Council","http://opendatacommunities.org/id/metropolitan-district-council/wolverhampton","WHIRLPOOL UK APPLIANCE","77.93","Duke Street Bungalows","5065","Catering","30/11/2016"
"Wolverhampton City Council","http://opendatacommunities.org/id/metropolitan-district-council/wolverhampton","Amazon UK Marketplace","-19.99","Pupil Premium","5999","Equipment - Purchase","30/11/2016"
"Wolverhampton City Council","http://opendatacommunities.org/id/metropolitan-district-council/wolverhampton","Amazon UK Marketplace","19.99","Pupil Premium","5942","Equipment - Purchase","30/11/2016"
"Wolverhampton City Council","http://opendatacommunities.org/id/metropolitan-district-council/wolverhampton","TESCO STORES 5194","145.69","Towers Outdoor Education Centre","5411","Provisions (Not for resale)","30/11/2016"
"Wolverhampton City Council","http://opendatacommunities.org/id/metropolitan-district-council/wolverhampton","WWWTESTPARTNERSHIPCO","180.00","Information & Intelligence","5734","Computing - Purchase of Software","30/11/2016"
"Wolverhampton City Council","http://opendatacommunities.org/id/metropolitan-district-council/wolverhampton","Trainline","171.67","Public Health Commissioning","4112","Public Transport","30/11/2016"
"Wolverhampton City Council","http://opendatacommunities.org/id/metropolitan-district-council/wolverhampton","Amazon UK Marketplace","20.97","SWP - Infrastructure","5942","Equipment - Purchase","30/11/2016"
"Wolverhampton City Council","http://opendatacommunities.org/id/metropolitan-district-council/wolverhampton","Amazon UK Marketplace","10.28","Strategic ICTS (ICT Serv Budget)","5942","Computing - Purchase of Hardware","30/11/2016"
"Wolverhampton City Council","http://opendatacommunities.org/id/metropolitan-district-council/wolverhampton","Amazon EU","27.45","Strategic ICTS (ICT Serv Budget)","5969","Computing - Purchase of Hardware","30/11/2016"
"Wolverhampton City Council","http://opendatacommunities.org/id/metropolitan-district-council/wolverhampton","ITUNES.COM/BILL","0.79","Strategic ICTS (ICT Serv Budget)","5735","Computing - Purchase of Software","30/11/2016"
"Wolverhampton City Council","http://opendatacommunities.org/id/metropolitan-district-council/wolverhampton","Amazon UK Marketplace","5.53","Aldersley Leisure Village","5942","Stationery","30/11/2016"
"Wolverhampton City Council","http://opendatacommunities.org/id/metropolitan-district-council/wolverhampton","POST OFFICE COUNTER","114.50","EIP Locality 5","9402","Comms - Postage","30/11/2016"
"Wolverhampton City Council","http://opendatacommunities.org/id/metropolitan-district-council/wolverhampton","Trainline","50.34","AES Staff Development","4112","Public Transport","30/11/2016"
"Wolverhampton City Council","http://opendatacommunities.org/id/metropolitan-district-council/wolverhampton","SEVERN TRENT WATER","130.48","LAC Transitions Team","4900","Client Allowances","30/11/2016"
"Wolverhampton City Council","http://opendatacommunities.org/id/metropolitan-district-council/wolverhampton","SCOTTISH POWER","15.82","LAC Transitions Team","4900","Client Allowances","30/11/2016"
"Wolverhampton City Council","http://opendatacommunities.org/id/metropolitan-district-council/wolverhampton","B&M RETAIL","22.98","Headstart Phase 3","5310","Equipment - Purchase","30/11/2016"
"Wolverhampton City Council","http://opendatacommunities.org/id/metropolitan-district-council/wolverhampton","HOLIDAY INN EXPRSS","499.17","Headstart Phase 3","7011","Services - Supplies & Services to users","30/11/2016"
"Wolverhampton City Council","http://opendatacommunities.org/id/metropolitan-district-council/wolverhampton","WM MORRISONS","2.64","Safeguarding Board - Adults","5411","Catering","30/11/2016"
"Wolverhampton City Council","http://opendatacommunities.org/id/metropolitan-district-council/wolverhampton","ASDA SUPERSTORE","35.00","Mayoral Expenses","5411","Hospitality","29/11/2016"
"Wolverhampton City Council","http://opendatacommunities.org/id/metropolitan-district-council/wolverhampton","SAINSBURYS (2340)","83.81","Mayoral Expenses","5411","Hospitality","29/11/2016"
"Wolverhampton City Council","http://opendatacommunities.org/id/metropolitan-district-council/wolverhampton","ASDA 4387","26.95","CIN/CP S17 SW Unit - Area 5","5411","Provisions (Not for resale)","29/11/2016"
"Wolverhampton City Council","http://opendatacommunities.org/id/metropolitan-district-council/wolverhampton","CT WOLVERHAMPTON","20.00","CIN/CP S17 SW Unit - Area 5","8398","Services - Supplies & Services to users","29/11/2016"
"Wolverhampton City Council","http://opendatacommunities.org/id/metropolitan-district-council/wolverhampton","AMAZON UK RETAIL AMAZO","54.30","Patching","5999","Materials","29/11/2016"
"Wolverhampton City Council","http://opendatacommunities.org/id/metropolitan-district-council/wolverhampton","Trainline","28.00","CIN/CP S17 SW Unit - Area 8","4112","Public Transport","29/11/2016"
"Wolverhampton City Council","http://opendatacommunities.org/id/metropolitan-district-council/wolverhampton","Trainline","28.00","CIN/CP S17 SW Unit - Area 8","4112","Client Transport","29/11/2016"
"Wolverhampton City Council","http://opendatacommunities.org/id/metropolitan-district-council/wolverhampton","Trainline","195.74","Adoption and Residence Team & Allowances","4112","Public Transport","29/11/2016"
"Wolverhampton City Council","http://opendatacommunities.org/id/metropolitan-district-council/wolverhampton","GRO HM PASSPORT OFFICE","23.40","Adoption and Residence Team & Allowances","9399","Services - Fees and Charges","29/11/2016"
"Wolverhampton City Council","http://opendatacommunities.org/id/metropolitan-district-council/wolverhampton","PO LOW HILL 1592","130.00","EIP Locality 7","6011","Equipment - Purchase","29/11/2016"
"Wolverhampton City Council","http://opendatacommunities.org/id/metropolitan-district-council/wolverhampton","Amazon UK Marketplace","20.75","Central Baths","5942","Books","29/11/2016"
"Wolverhampton City Council","http://opendatacommunities.org/id/metropolitan-district-council/wolverhampton","BRITANNIA","108.00","CIN/CP S17 SW Unit - Area 3","7011","Services - Supplies & Services to users","29/11/2016"
"Wolverhampton City Council","http://opendatacommunities.org/id/metropolitan-district-council/wolverhampton","W M MORRISONS.COM","226.71","Discretionary Fund","5411","Materials","29/11/2016"
"Wolverhampton City Council","http://opendatacommunities.org/id/metropolitan-district-council/wolverhampton","GRO HM PASSPORT OFFICE","23.40","Head of Service - CINCP","9399","Services - Professional Fees","29/11/2016"
"Wolverhampton City Council","http://opendatacommunities.org/id/metropolitan-district-council/wolverhampton","HMCOURTS-SERVICE.G","20.00","Assessment Team (North)","9222","Services - Fees and Charges","29/11/2016"
"Wolverhampton City Council","http://opendatacommunities.org/id/metropolitan-district-council/wolverhampton","G & M HALE (SUNDRIES)","21.55","Discretionary Fund","5992","Materials","29/11/2016"
"Wolverhampton City Council","http://opendatacommunities.org/id/metropolitan-district-council/wolverhampton","G & M HALE LTD","30.75","Discretionary Fund","5992","Materials","29/11/2016"
"Wolverhampton City Council","http://opendatacommunities.org/id/metropolitan-district-council/wolverhampton","G & M HALE LTD","53.10","Creative Studies Delivery Area","5992","Materials for resale","29/11/2016"
"Wolverhampton City Council","http://opendatacommunities.org/id/metropolitan-district-council/wolverhampton","G & M HALE LTD","78.00","Discretionary Fund","5992","Materials","29/11/2016"
"Wolverhampton City Council","http://opendatacommunities.org/id/metropolitan-district-council/wolverhampton","Virgin Trains","16.20","Assistant Director - Public Health","4112","Public Transport","29/11/2016"
"Wolverhampton City Council","http://opendatacommunities.org/id/metropolitan-district-council/wolverhampton","HUGHES","408.33","LAC Transitions Team","5732","Client Allowances","29/11/2016"
"Wolverhampton City Council","http://opendatacommunities.org/id/metropolitan-district-council/wolverhampton","B & Q 1243","13.23","Caretakers Community Centre","5211","R&M - Departmental planned (external)","29/11/2016"
"Wolverhampton City Council","http://opendatacommunities.org/id/metropolitan-district-council/wolverhampton","Amazon UK Marketplace","2.27","EIP Locality 1","5942","Books","29/11/2016"
"Wolverhampton City Council","http://opendatacommunities.org/id/metropolitan-district-council/wolverhampton","INFOCASH","30.00","EIP Locality 2","6011","Financial Assistance In Exceptional Circ","29/11/2016"
"Wolverhampton City Council","http://opendatacommunities.org/id/metropolitan-district-council/wolverhampton","NATWEST BANK","30.00","EIP Locality 2","6011","Financial Assistance In Exceptional Circ","29/11/2016"
"Wolverhampton City Council","http://opendatacommunities.org/id/metropolitan-district-council/wolverhampton","123 REG R/T","13.98","Technical Support","5968","Subscriptions","29/11/2016"
"Wolverhampton City Council","http://opendatacommunities.org/id/metropolitan-district-council/wolverhampton","123-REG.CO.UK","27.96","Technical Support","4816","Computing - Purchase of Software","29/11/2016"
"Wolverhampton City Council","http://opendatacommunities.org/id/metropolitan-district-council/wolverhampton","Amazon UK Marketplace","4.24","Global Budgets","5942","Stationery","29/11/2016"
"Wolverhampton City Council","http://opendatacommunities.org/id/metropolitan-district-council/wolverhampton","PAYPAL  ATTICSTUDIO","60.00","Art Gallery","8999","Services - Professional Fees","29/11/2016"
"Wolverhampton City Council","http://opendatacommunities.org/id/metropolitan-district-council/wolverhampton","ASDA HOME SHOPPING","-1.16","Ernest Bold Court","5411","Provisions (Not for resale)","29/11/2016"
"Wolverhampton City Council","http://opendatacommunities.org/id/metropolitan-district-council/wolverhampton","ASDA HOME SHOPPING","-1.82","Ernest Bold Court","5411","Provisions (Not for resale)","29/11/2016"
"Wolverhampton City Council","http://opendatacommunities.org/id/metropolitan-district-council/wolverhampton","ASDA HOME SHOPPING","95.37","Ernest Bold Court","5411","Provisions (Not for resale)","29/11/2016"
"Wolverhampton City Council","http://opendatacommunities.org/id/metropolitan-district-council/wolverhampton","T.A. HENN & SON LTD","150.00","Mayoral Expenses","5944","Gratuities","29/11/2016"
"Wolverhampton City Council","http://opendatacommunities.org/id/metropolitan-district-council/wolverhampton","T.A. HENN & SON LTD","150.00","Mayoral Expenses","5944","Gratuities","29/11/2016"
"Wolverhampton City Council","http://opendatacommunities.org/id/metropolitan-district-council/wolverhampton","T.A. HENN & SON LTD","150.00","Mayoral Expenses","5944","Gratuities","29/11/2016"
"Wolverhampton City Council","http://opendatacommunities.org/id/metropolitan-district-council/wolverhampton","MILLERS JEWELLERS","450.00","Mayoral Expenses","5944","Gratuities","29/11/2016"
"Wolverhampton City Council","http://opendatacommunities.org/id/metropolitan-district-council/wolverhampton","Trainline","203.39","Service Director City Economy","4112","Public Transport","29/11/2016"
"Wolverhampton City Council","http://opendatacommunities.org/id/metropolitan-district-council/wolverhampton","TOOLSTATION LTD","13.07","Education Catering - General Overheads","5251","Equipment - Purchase","29/11/2016"
"Wolverhampton City Council","http://opendatacommunities.org/id/metropolitan-district-council/wolverhampton","WWW.TONERGIANT.CO.UK","81.87","Welfare Rights","5943","Stationery","29/11/2016"
"Wolverhampton City Council","http://opendatacommunities.org/id/metropolitan-district-council/wolverhampton","ASDA 4387","-8.50","EIP Locality 4","5411","Grant Payments","28/11/2016"
"Wolverhampton City Council","http://opendatacommunities.org/id/metropolitan-district-council/wolverhampton","SCREWFIX DIRECT","124.99","Bert Williams Leisure Centre","5211","Equipment - Purchase","28/11/2016"
"Wolverhampton City Council","http://opendatacommunities.org/id/metropolitan-district-council/wolverhampton","HOOTSUITE MEDIA INC.","99.18","Service Wide","7399","Subscriptions","28/11/2016"
"Wolverhampton City Council","http://opendatacommunities.org/id/metropolitan-district-council/wolverhampton","B&M RETAIL","110.86","LAC Transitions Team","5310","Client Allowances","28/11/2016"
"Wolverhampton City Council","http://opendatacommunities.org/id/metropolitan-district-council/wolverhampton","CAPITAL APPLIANCE CTR","389.17","LAC Transitions Team","5722","Client Allowances","28/11/2016"
"Wolverhampton City Council","http://opendatacommunities.org/id/metropolitan-district-council/wolverhampton","CASH GENERATOR","183.32","LAC Transitions Team","5999","Client Allowances","28/11/2016"
"Wolverhampton City Council","http://opendatacommunities.org/id/metropolitan-district-council/wolverhampton","MATALAN","42.50","Ernest Bold Court","5691","Equipment - Purchase","28/11/2016"
"Wolverhampton City Council","http://opendatacommunities.org/id/metropolitan-district-council/wolverhampton","NEXT-0637","8.00","Education And Access","5651","Services - Supplies & Services to users","28/11/2016"
"Wolverhampton City Council","http://opendatacommunities.org/id/metropolitan-district-council/wolverhampton","JOHNSTONES DEC CENTRE","39.29","Wolverhampton Indoor and Open Market","5231","Materials","28/11/2016"
"Wolverhampton City Council","http://opendatacommunities.org/id/metropolitan-district-council/wolverhampton","OAKES LEISURE LTD","99.75","Wolverhampton Indoor and Open Market","5945","Equipment - Purchase","28/11/2016"
"Wolverhampton City Council","http://opendatacommunities.org/id/metropolitan-district-council/wolverhampton","OAKES LEISURE LTD","250.00","Wolverhampton Indoor and Open Market","5945","Equipment - Purchase","28/11/2016"
"Wolverhampton City Council","http://opendatacommunities.org/id/metropolitan-district-council/wolverhampton","CANARY CARE","45.00","Telecare","5712","Equipment - Purchase","28/11/2016"
"Wolverhampton City Council","http://opendatacommunities.org/id/metropolitan-district-council/wolverhampton","HOME BARGAINS","17.82","CIN/CP Social Work Unit - Area 2","5251","Stationery","28/11/2016"
"Wolverhampton City Council","http://opendatacommunities.org/id/metropolitan-district-council/wolverhampton","Amazon UK Marketplace","5.50","Global Budgets","5942","Books","28/11/2016"
"Wolverhampton City Council","http://opendatacommunities.org/id/metropolitan-district-council/wolverhampton","Amazon UK Marketplace","9.26","Global Budgets","5999","Books","28/11/2016"
"Wolverhampton City Council","http://opendatacommunities.org/id/metropolitan-district-council/wolverhampton","E09009100000000","50.00","No Recourse to Public Funds - CIN/CP","6011","Financial Assistance In Exceptional Circ","28/11/2016"
"Wolverhampton City Council","http://opendatacommunities.org/id/metropolitan-district-council/wolverhampton","Trainline","47.26","No Recourse to Public Funds - CIN/CP","4112","Public Transport","28/11/2016"
"Wolverhampton City Council","http://opendatacommunities.org/id/metropolitan-district-council/wolverhampton","ASDA HOME SHOPPING","-0.15","Ernest Bold Court","5411","Provisions (Not for resale)","28/11/2016"
"Wolverhampton City Council","http://opendatacommunities.org/id/metropolitan-district-council/wolverhampton","LIDL UK","3.09","Ernest Bold Court","5411","Provisions (Not for resale)","28/11/2016"
"Wolverhampton City Council","http://opendatacommunities.org/id/metropolitan-district-council/wolverhampton","ASDA HOME SHOPPING","94.24","Ernest Bold Court","5411","Provisions (Not for resale)","28/11/2016"
"Wolverhampton City Council","http://opendatacommunities.org/id/metropolitan-district-council/wolverhampton","BRITANNIA","200.00","CIN/CP S17 SW Unit - Area 5","7011","Accommodation Costs","28/11/2016"
"Wolverhampton City Council","http://opendatacommunities.org/id/metropolitan-district-council/wolverhampton","FACEBK HXVLX9WE92","8.44","Civic Halls Non Direct Management A/C","7311","Marketing \ Non-staff advertising","28/11/2016"
"Wolverhampton City Council","http://opendatacommunities.org/id/metropolitan-district-council/wolverhampton","FACEBK GXVLX9WE92","591.57","Civic Halls Non Direct Management A/C","7311","Marketing \ Non-staff advertising","28/11/2016"
"Wolverhampton City Council","http://opendatacommunities.org/id/metropolitan-district-council/wolverhampton","budgetair.co.uk","405.78","CIN/CP Social Work Unit - Area 4","4722","Public Transport","28/11/2016"
"Wolverhampton City Council","http://opendatacommunities.org/id/metropolitan-district-council/wolverhampton","Wolverhampton Fair Tra","57.00","Civic Centre Catering","5411","Provisions (Not for resale)","28/11/2016"
"Wolverhampton City Council","http://opendatacommunities.org/id/metropolitan-district-council/wolverhampton","POST OFFICE COUNTER","12.98","Duke Street Bungalows","9402","Comms - Postage","28/11/2016"
"Wolverhampton City Council","http://opendatacommunities.org/id/metropolitan-district-council/wolverhampton","EVINOX LTD","100.00","LAC Transitions Team","5074","Equipment - Purchase","28/11/2016"
"Wolverhampton City Council","http://opendatacommunities.org/id/metropolitan-district-council/wolverhampton","Trainline","56.71","Pop Gallery Space","4112","Public Transport","28/11/2016"
"Wolverhampton City Council","http://opendatacommunities.org/id/metropolitan-district-council/wolverhampton","ARGOS LTD","20.00","Pupil Premium","5310","Stationery","28/11/2016"
"Wolverhampton City Council","http://opendatacommunities.org/id/metropolitan-district-council/wolverhampton","WWW.DELMEREHOTEL.CO.UK","131.67","Children & Young People Support Costs","7011","Services - Supplies & Services to users","28/11/2016"
"Wolverhampton City Council","http://opendatacommunities.org/id/metropolitan-district-council/wolverhampton","WWW.DELMEREHOTEL.CO.UK","131.67","Children & Young People Support Costs","7011","Services - Supplies & Services to users","28/11/2016"
"Wolverhampton City Council","http://opendatacommunities.org/id/metropolitan-district-council/wolverhampton","B&M RETAIL","85.53","Civic Centre","5310","Equipment - Purchase","28/11/2016"
"Wolverhampton City Council","http://opendatacommunities.org/id/metropolitan-district-council/wolverhampton","H S HOMMERS&SONS (D B)","229.97","Civic Centre","5261","Equipment - Purchase","28/11/2016"
"Wolverhampton City Council","http://opendatacommunities.org/id/metropolitan-district-council/wolverhampton","WIX.COM","93.13","Technical Support","5968","Subscriptions","28/11/2016"
"Wolverhampton City Council","http://opendatacommunities.org/id/metropolitan-district-council/wolverhampton","WIX.COM","93.13","Technical Support","5817","Computing - Purchase of Software","28/11/2016"
"Wolverhampton City Council","http://opendatacommunities.org/id/metropolitan-district-council/wolverhampton","MOBI TECHNO LTD","65.00","Technical Support","4812","Comms - Mobile Telephones","28/11/2016"
"Wolverhampton City Council","http://opendatacommunities.org/id/metropolitan-district-council/wolverhampton","AMAZON UK RETAIL AMAZO","6.84","Global Budgets","5999","Books","28/11/2016"
"Wolverhampton City Council","http://opendatacommunities.org/id/metropolitan-district-council/wolverhampton","GRO HM PASSPORT OFFICE","23.40","Head of Service - CINCP","9399","Services - Professional Fees","28/11/2016"
"Wolverhampton City Council","http://opendatacommunities.org/id/metropolitan-district-council/wolverhampton","WM MORRISON FOOD.COM","117.78","Upper Pendeford Farm Childrens Home","5411","Provisions (Not for resale)","28/11/2016"
"Wolverhampton City Council","http://opendatacommunities.org/id/metropolitan-district-council/wolverhampton","Amazon UK Marketplace","7.40","Upper Pendeford Farm Childrens Home","5942","Books","28/11/2016"
"Wolverhampton City Council","http://opendatacommunities.org/id/metropolitan-district-council/wolverhampton","ASDA SUPERSTORE","4.88","Mayoral Expenses","5411","Hospitality","28/11/2016"
"Wolverhampton City Council","http://opendatacommunities.org/id/metropolitan-district-council/wolverhampton","SHELL TRITON 490","25.00","Mayoral Expenses","5541","Petrol","28/11/2016"
"Wolverhampton City Council","http://opendatacommunities.org/id/metropolitan-district-council/wolverhampton","APPLEGREEN","25.37","Mayoral Expenses","5541","Petrol","28/11/2016"
"Wolverhampton City Council","http://opendatacommunities.org/id/metropolitan-district-council/wolverhampton","TFM FARM & COUNTRY SUP","10.27","Northicote Farm","5399","Equipment - Purchase","28/11/2016"
"Wolverhampton City Council","http://opendatacommunities.org/id/metropolitan-district-council/wolverhampton","KONICA MINOLTA BUSINES","188.63","Music Support Team","7399","Equipment - R & M","28/11/2016"
"Wolverhampton City Council","http://opendatacommunities.org/id/metropolitan-district-council/wolverhampton","BRITANNIA","34.00","Assessment Team (West)","7011","Services - Supplies & Services to users","28/11/2016"
"Wolverhampton City Council","http://opendatacommunities.org/id/metropolitan-district-council/wolverhampton","PAYPAL  UNIQUELITTL","13.98","Licensing - General","5331","Equipment - Purchase","28/11/2016"
"Wolverhampton City Council","http://opendatacommunities.org/id/metropolitan-district-council/wolverhampton","WWW.WESELLELECTRICALS.","190.83","Landscape","5722","Equipment - Purchase","25/11/2016"
"Wolverhampton City Council","http://opendatacommunities.org/id/metropolitan-district-council/wolverhampton","PLIMBLEY TRAVEL LIMITE","68.18","Mayoral Expenses","4722","Public Transport","25/11/2016"
"Wolverhampton City Council","http://opendatacommunities.org/id/metropolitan-district-council/wolverhampton","STRIKING DISPLAYS","69.60","Maintenance & Technical Materials","5085","Equipment - Purchase","25/11/2016"
"Wolverhampton City Council","http://opendatacommunities.org/id/metropolitan-district-council/wolverhampton","SETON","86.42","Technician","5099","Equipment - Purchase","25/11/2016"
"Wolverhampton City Council","http://opendatacommunities.org/id/metropolitan-district-council/wolverhampton","STRIKING DISPLAYS","108.00","Art Gallery","5085","Equipment - Purchase","25/11/2016"
"Wolverhampton City Council","http://opendatacommunities.org/id/metropolitan-district-council/wolverhampton","CENTRO HOUSE","1133.22","Business Manager - Place","4112","Public Transport","25/11/2016"
"Wolverhampton City Council","http://opendatacommunities.org/id/metropolitan-district-council/wolverhampton","NATWEST BANK","100.00","Democratic Support","6011","Public Transport","25/11/2016"
"Wolverhampton City Council","http://opendatacommunities.org/id/metropolitan-district-council/wolverhampton","MAYFAIR CARPETS","390.00","LAC Transitions Team","5712","Equipment - Purchase","25/11/2016"
"Wolverhampton City Council","http://opendatacommunities.org/id/metropolitan-district-council/wolverhampton","Amazon UK Marketplace","307.49","Pupil Premium","5942","Books","25/11/2016"
"Wolverhampton City Council","http://opendatacommunities.org/id/metropolitan-district-council/wolverhampton","WWW.STAPLES.CO.UK","-11.66","Towers Outdoor Education Centre","5943","Stationery","25/11/2016"
"Wolverhampton City Council","http://opendatacommunities.org/id/metropolitan-district-council/wolverhampton","ARGOS LTD","204.93","CIN/CP S17 SW Unit - Area 6","5310","Equipment - Purchase","25/11/2016"
"Wolverhampton City Council","http://opendatacommunities.org/id/metropolitan-district-council/wolverhampton","ARGOS LTD","343.81","EIP Locality 6","5310","Equipment - Purchase","25/11/2016"
"Wolverhampton City Council","http://opendatacommunities.org/id/metropolitan-district-council/wolverhampton","BRITANNIA","167.08","CIN/CP S17 SW Unit - Area 5","7011","Accommodation Costs","25/11/2016"
"Wolverhampton City Council","http://opendatacommunities.org/id/metropolitan-district-council/wolverhampton","YMLP.COM","42.00","Civic Halls Non Direct Management A/C","7372","Computing - Purchase of Software","25/11/2016"
"Wolverhampton City Council","http://opendatacommunities.org/id/metropolitan-district-council/wolverhampton","ARGOS RETAIL GROUP","43.94","CIN/CP S17 SW Unit - Area 4","5310","Equipment - Purchase","25/11/2016"
"Wolverhampton City Council","http://opendatacommunities.org/id/metropolitan-district-council/wolverhampton","THE RANGE","65.58","Ernest Bold Court","5311","Equipment - Purchase","25/11/2016"
"Wolverhampton City Council","http://opendatacommunities.org/id/metropolitan-district-council/wolverhampton","MARKS&SPENCER PLC SACA","32.85","Mayoral Expenses","5411","Hospitality","25/11/2016"
"Wolverhampton City Council","http://opendatacommunities.org/id/metropolitan-district-council/wolverhampton","PATISSERIE VALERIE","21.83","Mayoral Expenses","5812","Hospitality","25/11/2016"
"Wolverhampton City Council","http://opendatacommunities.org/id/metropolitan-district-council/wolverhampton","BRITANNIA","191.67","CIN/CP S17 SW Unit - Area 3","7011","Accommodation Costs","25/11/2016"
"Wolverhampton City Council","http://opendatacommunities.org/id/metropolitan-district-council/wolverhampton","NETWORK WEST MIDLANDS","53.00","European Liaison","9399","Client Transport","25/11/2016"
"Wolverhampton City Council","http://opendatacommunities.org/id/metropolitan-district-council/wolverhampton","ARGOS RETAIL GROUP","106.94","LAC Transitions Team","5310","Client Allowances","25/11/2016"
"Wolverhampton City Council","http://opendatacommunities.org/id/metropolitan-district-council/wolverhampton","ARGOS RETAIL GROUP","151.90","LAC Transitions Team","5310","Client Allowances","25/11/2016"
"Wolverhampton City Council","http://opendatacommunities.org/id/metropolitan-district-council/wolverhampton","WOWCHER","188.99","LAC Transitions Team","5192","Client Allowances","25/11/2016"
"Wolverhampton City Council","http://opendatacommunities.org/id/metropolitan-district-council/wolverhampton","E01510300000000","-30.00","Managing Director","6011","Financial Assistance In Exceptional Circ","25/11/2016"
"Wolverhampton City Council","http://opendatacommunities.org/id/metropolitan-district-council/wolverhampton","Amazon UK Marketplace","9.76","Aldersley Leisure Village","5942","Equipment - Purchase","25/11/2016"
"Wolverhampton City Council","http://opendatacommunities.org/id/metropolitan-district-council/wolverhampton","WILKO RETAIL LIMIT","20.45","Intensive Family Support Team","5722","Equipment - Purchase","25/11/2016"
"Wolverhampton City Council","http://opendatacommunities.org/id/metropolitan-district-council/wolverhampton","Trainline","85.63","AES Staff Development","4112","Public Transport","25/11/2016"
"Wolverhampton City Council","http://opendatacommunities.org/id/metropolitan-district-council/wolverhampton","WEST COAST TRAINS","7.50","Curatorial - Cultural Learning","4112","Subsistence","25/11/2016"
"Wolverhampton City Council","http://opendatacommunities.org/id/metropolitan-district-council/wolverhampton","Trainline","366.69","Headstart Phase 3","4112","Public Transport","25/11/2016"
"Wolverhampton City Council","http://opendatacommunities.org/id/metropolitan-district-council/wolverhampton","MAILCHIMP","40.87","City Direct","7399","Equipment - Purchase","25/11/2016"
"Wolverhampton City Council","http://opendatacommunities.org/id/metropolitan-district-council/wolverhampton","Virgin Trains","60.00","Housing Regeneration - Strategy & Dev","4112","Public Transport","25/11/2016"
"Wolverhampton City Council","http://opendatacommunities.org/id/metropolitan-district-council/wolverhampton","HOBBIES LTD","287.31","Education Business Partnership","5945","Equipment - Purchase","24/11/2016"
"Wolverhampton City Council","http://opendatacommunities.org/id/metropolitan-district-council/wolverhampton","SAINSBURYS (2340)","150.00","Duke Street Bungalows","5411","Equipment - Purchase","24/11/2016"
"Wolverhampton City Council","http://opendatacommunities.org/id/metropolitan-district-council/wolverhampton","ARGOS RETAIL GROUP","109.95","EIP Locality 6","5310","Equipment - Purchase","24/11/2016"
"Wolverhampton City Council","http://opendatacommunities.org/id/metropolitan-district-council/wolverhampton","ARGOS RETAIL GROUP","100.91","EIP Locality 6","5310","Equipment - Purchase","24/11/2016"
"Wolverhampton City Council","http://opendatacommunities.org/id/metropolitan-district-council/wolverhampton","B&M RETAIL","94.42","LAC Transitions Team","5310","Client Allowances","24/11/2016"
"Wolverhampton City Council","http://opendatacommunities.org/id/metropolitan-district-council/wolverhampton","ASDA 4387","93.45","EIP Locality 4","5411","Grant Payments","24/11/2016"
"Wolverhampton City Council","http://opendatacommunities.org/id/metropolitan-district-council/wolverhampton","B & Q 1243","45.70","Public Conveniences","5211","R&M - Departmental planned (external)","24/11/2016"
"Wolverhampton City Council","http://opendatacommunities.org/id/metropolitan-district-council/wolverhampton","THE RED HOUSE","24.99","European Liaison","5611","Clothing / Uniforms","24/11/2016"
"Wolverhampton City Council","http://opendatacommunities.org/id/metropolitan-district-council/wolverhampton","THE POST OFFICE","220.00","European Liaison","9402","Financial Assistance In Exceptional Circ","24/11/2016"
"Wolverhampton City Council","http://opendatacommunities.org/id/metropolitan-district-council/wolverhampton","THE POST OFFICE","220.00","European Liaison","9402","Financial Assistance In Exceptional Circ","24/11/2016"
"Wolverhampton City Council","http://opendatacommunities.org/id/metropolitan-district-council/wolverhampton","WALSALL COUNCIL","22.00","European Liaison","9399","Financial Assistance In Exceptional Circ","24/11/2016"
"Wolverhampton City Council","http://opendatacommunities.org/id/metropolitan-district-council/wolverhampton","Amazon UK Marketplace","129.90","Strategic ICTS (ICT Serv Budget)","5942","Computing - Purchase of Hardware","24/11/2016"
"Wolverhampton City Council","http://opendatacommunities.org/id/metropolitan-district-council/wolverhampton","E01510300000000","30.00","Managing Director","6011","Financial Assistance In Exceptional Circ","24/11/2016"
"Wolverhampton City Council","http://opendatacommunities.org/id/metropolitan-district-council/wolverhampton","E01510300000000","30.00","Managing Director","6011","Financial Assistance In Exceptional Circ","24/11/2016"
"Wolverhampton City Council","http://opendatacommunities.org/id/metropolitan-district-council/wolverhampton","PREMIER INN","72.00","Headstart Phase 3","3811","Services - Supplies & Services to users","24/11/2016"
"Wolverhampton City Council","http://opendatacommunities.org/id/metropolitan-district-council/wolverhampton","WOLVES FC","14.99","Archives","7997","Books","24/11/2016"
"Wolverhampton City Council","http://opendatacommunities.org/id/metropolitan-district-council/wolverhampton","WWW.COFFEESUPPLIESDIRE","195.05","Archives","5331","Catering","24/11/2016"
"Wolverhampton City Council","http://opendatacommunities.org/id/metropolitan-district-council/wolverhampton","SMYTHS TOYS","39.92","Education And Access","5945","Equipment - Purchase","24/11/2016"
"Wolverhampton City Council","http://opendatacommunities.org/id/metropolitan-district-council/wolverhampton","WWW.SMYTHSTOYS.COM","83.96","Education And Access","5945","Equipment - Purchase","24/11/2016"
"Wolverhampton City Council","http://opendatacommunities.org/id/metropolitan-district-council/wolverhampton","PARTS.HOTPOINT.CO.UK","29.98","Duke Street Bungalows","5999","Catering","24/11/2016"
"Wolverhampton City Council","http://opendatacommunities.org/id/metropolitan-district-council/wolverhampton","UK AUTOMOTIVE PRODTS L","398.87","Catering Overhead Account","5533","Equipment - Purchase","24/11/2016"
"Wolverhampton City Council","http://opendatacommunities.org/id/metropolitan-district-council/wolverhampton","MICHAEL BACHYK","918.99","Catering Overhead Account","5422","Catering","24/11/2016"
"Wolverhampton City Council","http://opendatacommunities.org/id/metropolitan-district-council/wolverhampton","B & Q 1243","38.47","Car Parks Operational Staff","5211","Equipment - Purchase","24/11/2016"
"Wolverhampton City Council","http://opendatacommunities.org/id/metropolitan-district-council/wolverhampton","Amazon EU","49.32","School Improvement","5969","Equipment - Purchase","24/11/2016"
"Wolverhampton City Council","http://opendatacommunities.org/id/metropolitan-district-council/wolverhampton","Amazon UK Marketplace","3.62","School Improvement","5942","Books","24/11/2016"
"Wolverhampton City Council","http://opendatacommunities.org/id/metropolitan-district-council/wolverhampton","Amazon UK Marketplace","50.98","School Improvement","5942","Books","24/11/2016"
"Wolverhampton City Council","http://opendatacommunities.org/id/metropolitan-district-council/wolverhampton","WWW.CORAM.ORG.UK","50.70","Fostering Team & Allowances","8398","Services - Supplies & Services to users","24/11/2016"
"Wolverhampton City Council","http://opendatacommunities.org/id/metropolitan-district-council/wolverhampton","ASDA SUPERSTORE","28.33","CIN/CP S17 SW Unit - Area 1","5411","Services - Supplies & Services to users","24/11/2016"
"Wolverhampton City Council","http://opendatacommunities.org/id/metropolitan-district-council/wolverhampton","SAINSBURYS 2040","6.67","Duke Street Bungalows","5411","Provisions (Not for resale)","24/11/2016"
"Wolverhampton City Council","http://opendatacommunities.org/id/metropolitan-district-council/wolverhampton","POST OFFICE COUNTER","261.00","Adoption and Residence Team & Allowances","9402","Comms - Postage","24/11/2016"
"Wolverhampton City Council","http://opendatacommunities.org/id/metropolitan-district-council/wolverhampton","Amazon UK Marketplace","14.78","Aldersley Leisure Village","5942","Equipment - Purchase","24/11/2016"
"Wolverhampton City Council","http://opendatacommunities.org/id/metropolitan-district-council/wolverhampton","PLANET GLOBAL LTD","54.55","Communications & Marketing - General","5943","Stationery","24/11/2016"
"Wolverhampton City Council","http://opendatacommunities.org/id/metropolitan-district-council/wolverhampton","MERCURE WHITE HART HOT","100.00","LAC Team","7011","Services - Supplies & Services to users","24/11/2016"
"Wolverhampton City Council","http://opendatacommunities.org/id/metropolitan-district-council/wolverhampton","Virgin Trains","118.10","Condition Surveys","4112","Public Transport","24/11/2016"
"Wolverhampton City Council","http://opendatacommunities.org/id/metropolitan-district-council/wolverhampton","LOYD WEDNESFIELD WOLVE","50.00","Duke Street Bungalows","6011","Financial Assistance In Exceptional Circ","24/11/2016"
"Wolverhampton City Council","http://opendatacommunities.org/id/metropolitan-district-council/wolverhampton","Amazon UK Marketplace","147.92","Pupil Premium","5942","Equipment - Health and Safety","24/11/2016"
"Wolverhampton City Council","http://opendatacommunities.org/id/metropolitan-district-council/wolverhampton","Amazon UK Marketplace","211.78","Towers Outdoor Education Centre","5942","Equipment - Purchase","24/11/2016"
"Wolverhampton City Council","http://opendatacommunities.org/id/metropolitan-district-council/wolverhampton","ASDA SUPERSTORE","116.67","Employment Programmes","5411","Provisions (Not for resale)","24/11/2016"
"Wolverhampton City Council","http://opendatacommunities.org/id/metropolitan-district-council/wolverhampton","AMAZON UK RETAIL AMAZO","22.28","Technical Support","5999","Equipment - Purchase","24/11/2016"
"Wolverhampton City Council","http://opendatacommunities.org/id/metropolitan-district-council/wolverhampton","Trainline","71.09","CIN/CP S17 SW Unit - Area 5","4112","Public Transport","23/11/2016"
"Wolverhampton City Council","http://opendatacommunities.org/id/metropolitan-district-council/wolverhampton","DUDLEY MBC  INTERN","75.90","Education Business Partnership","8999","Services - Professional Fees","23/11/2016"
"Wolverhampton City Council","http://opendatacommunities.org/id/metropolitan-district-council/wolverhampton","HUGHES","408.33","LAC Transitions Team","5732","Client Allowances","23/11/2016"
"Wolverhampton City Council","http://opendatacommunities.org/id/metropolitan-district-council/wolverhampton","Trainline","476.75","Strategic Director Place","4112","Public Transport","23/11/2016"
"Wolverhampton City Council","http://opendatacommunities.org/id/metropolitan-district-council/wolverhampton","AMAZON UK RETAIL AMAZO","4.16","Jane & Louise Wilson","5999","Equipment - Purchase","23/11/2016"
"Wolverhampton City Council","http://opendatacommunities.org/id/metropolitan-district-council/wolverhampton","Amazon UK Marketplace","11.28","Jane & Louise Wilson","5942","Equipment - Purchase","23/11/2016"
"Wolverhampton City Council","http://opendatacommunities.org/id/metropolitan-district-council/wolverhampton","Amazon UK Marketplace","2.99","Visitor Economy - Development","5942","Equipment - Purchase","23/11/2016"
"Wolverhampton City Council","http://opendatacommunities.org/id/metropolitan-district-council/wolverhampton","Amazon UK Marketplace","6.72","Jane & Louise Wilson","5942","Equipment - Purchase","23/11/2016"
"Wolverhampton City Council","http://opendatacommunities.org/id/metropolitan-district-council/wolverhampton","REGISTRARS OFFICE","30.00","Head of Service - CINCP","8299","Services - Professional Fees","23/11/2016"
"Wolverhampton City Council","http://opendatacommunities.org/id/metropolitan-district-council/wolverhampton","SAINSBURYS (2340)","3.96","Mayoral Expenses","5411","Hospitality","23/11/2016"
"Wolverhampton City Council","http://opendatacommunities.org/id/metropolitan-district-council/wolverhampton","PARTRIDGE & PRINT","378.00","Fostering Team & Allowances","8299","Training Expenses","23/11/2016"
"Wolverhampton City Council","http://opendatacommunities.org/id/metropolitan-district-council/wolverhampton","WAITROSE 696","2.99","EIP Locality 3","5411","Provisions (Not for resale)","23/11/2016"
"Wolverhampton City Council","http://opendatacommunities.org/id/metropolitan-district-council/wolverhampton","FACEBK 9X496BJAR2","40.06","WV Active Business Support","7311","Marketing \ Non-staff advertising","23/11/2016"
"Wolverhampton City Council","http://opendatacommunities.org/id/metropolitan-district-council/wolverhampton","POST OFFICE COUNTER","29.75","Intensive Family Support Team","9402","Comms - Postage","23/11/2016"
"Wolverhampton City Council","http://opendatacommunities.org/id/metropolitan-district-council/wolverhampton","WWW.CARESHOP.CO.UK","40.84","Ernest Bold Court","5999","Equipment - Purchase","23/11/2016"
"Wolverhampton City Council","http://opendatacommunities.org/id/metropolitan-district-council/wolverhampton","SAINSBURYS (2340)","20.83","Community Enablement","5411","Equipment - Purchase","23/11/2016"
"Wolverhampton City Council","http://opendatacommunities.org/id/metropolitan-district-council/wolverhampton","WM MORRISONS","27.00","Headstart Phase 3","5411","Provisions (Not for resale)","23/11/2016"
"Wolverhampton City Council","http://opendatacommunities.org/id/metropolitan-district-council/wolverhampton","Trainline","72.01","CIN/CP S17 SW Unit - Area 2","4112","Public Transport","23/11/2016"
"Wolverhampton City Council","http://opendatacommunities.org/id/metropolitan-district-council/wolverhampton","SCREWFIX DIRECT LT","17.97","Cleaning of Buildings - General","5211","R&M - Departmental planned (external)","23/11/2016"
"Wolverhampton City Council","http://opendatacommunities.org/id/metropolitan-district-council/wolverhampton","WWW.BAKERROSS.CO.UK","22.90","EIP Locality 1","5970","Materials","23/11/2016"
"Wolverhampton City Council","http://opendatacommunities.org/id/metropolitan-district-council/wolverhampton","ARGOS RETAIL GROUP","49.97","EIP Locality 2","5310","Equipment - Purchase","23/11/2016"
"Wolverhampton City Council","http://opendatacommunities.org/id/metropolitan-district-council/wolverhampton","Amazon UK Marketplace","17.92","Aldersley Leisure Village","5999","Equipment - Purchase","23/11/2016"
"Wolverhampton City Council","http://opendatacommunities.org/id/metropolitan-district-council/wolverhampton","THE POST OFFICE","32.46","CIN/CP S17 SW Unit - Area 3","9402","Comms - Postage","23/11/2016"
"Wolverhampton City Council","http://opendatacommunities.org/id/metropolitan-district-council/wolverhampton","TESCO STORES 5194","173.83","Towers Outdoor Education Centre","5411","Provisions (Not for resale)","23/11/2016"
"Wolverhampton City Council","http://opendatacommunities.org/id/metropolitan-district-council/wolverhampton","WWW.DYNMARK.COM","22.80","Pupil & Student Support","7372","Computing - Purchase of Software","23/11/2016"
"Wolverhampton City Council","http://opendatacommunities.org/id/metropolitan-district-council/wolverhampton","Trainline","184.11","Head of Service - LAC","4112","Public Transport","23/11/2016"
"Wolverhampton City Council","http://opendatacommunities.org/id/metropolitan-district-council/wolverhampton","Trainline","168.61","Communications & Marketing - General","4112","Public Transport","23/11/2016"
"Wolverhampton City Council","http://opendatacommunities.org/id/metropolitan-district-council/wolverhampton","LINCAT LTD","41.25","Physical & Sensory Disabilities Mgmt","5399","Equipment - Purchase","23/11/2016"
"Wolverhampton City Council","http://opendatacommunities.org/id/metropolitan-district-council/wolverhampton","E.ON ENERGY SOLUTIONS","79.44","Childrens with Disabilities Team","4900","Electricity","23/11/2016"
"Wolverhampton City Council","http://opendatacommunities.org/id/metropolitan-district-council/wolverhampton","Amazon UK Marketplace","1.88","Parks - East Area Management","5942","Equipment - Purchase","23/11/2016"
"Wolverhampton City Council","http://opendatacommunities.org/id/metropolitan-district-council/wolverhampton","PREMIER INN","432.90","Adoption and Residence Team & Allowances","3811","Accommodation Costs","23/11/2016"
"Wolverhampton City Council","http://opendatacommunities.org/id/metropolitan-district-council/wolverhampton","PO LOW HILL 1592","50.00","EIP Locality 7","6011","Educ Trips, Holidays, Outings, Activity","23/11/2016"
"Wolverhampton City Council","http://opendatacommunities.org/id/metropolitan-district-council/wolverhampton","Trainline","93.13","SWP - Infrastructure","4112","Public Transport","22/11/2016"
"Wolverhampton City Council","http://opendatacommunities.org/id/metropolitan-district-council/wolverhampton","Trainline","163.20","Information & Intelligence","4112","Public Transport","22/11/2016"
"Wolverhampton City Council","http://opendatacommunities.org/id/metropolitan-district-council/wolverhampton","Trainline","72.93","Public Health - Healthier Places Team","4112","Public Transport","22/11/2016"
"Wolverhampton City Council","http://opendatacommunities.org/id/metropolitan-district-council/wolverhampton","WEST COAST TRAINS","190.40","Strategic ICTS (ICT Serv Budget)","4112","Public Transport","22/11/2016"
"Wolverhampton City Council","http://opendatacommunities.org/id/metropolitan-district-council/wolverhampton","Amazon UK Marketplace","7.95","Strategic ICTS (ICT Serv Budget)","5942","Books","22/11/2016"
"Wolverhampton City Council","http://opendatacommunities.org/id/metropolitan-district-council/wolverhampton","WWW.ISTOCK.COM","260.83","Communications & Marketing - General","5971","Services - Professional Fees","22/11/2016"
"Wolverhampton City Council","http://opendatacommunities.org/id/metropolitan-district-council/wolverhampton","W M MORRISONS.COM","199.84","Discretionary Fund","5411","Materials","22/11/2016"
"Wolverhampton City Council","http://opendatacommunities.org/id/metropolitan-district-council/wolverhampton","WOLVERHAMPTON CC","3.00","Headstart Phase 3","7523","Car Allowances","22/11/2016"
"Wolverhampton City Council","http://opendatacommunities.org/id/metropolitan-district-council/wolverhampton","Trainline","16.07","Director of Education","4112","Public Transport","22/11/2016"
"Wolverhampton City Council","http://opendatacommunities.org/id/metropolitan-district-council/wolverhampton","NAMESCO","27.96","Communications & Marketing - General","4816","Computing - Purchase of Software","22/11/2016"
"Wolverhampton City Council","http://opendatacommunities.org/id/metropolitan-district-council/wolverhampton","NAMESCO","49.98","Director of Governance","4816","Computing - Purchase of Software","22/11/2016"
"Wolverhampton City Council","http://opendatacommunities.org/id/metropolitan-district-council/wolverhampton","ARGOS LTD","49.99","Education And Access","5310","Equipment - Purchase","22/11/2016"
"Wolverhampton City Council","http://opendatacommunities.org/id/metropolitan-district-council/wolverhampton","THE ENTERTAINER 15","15.00","Education And Access","5945","Equipment - Purchase","22/11/2016"
"Wolverhampton City Council","http://opendatacommunities.org/id/metropolitan-district-council/wolverhampton","Akzonobel","114.14","Education And Access","5198","Materials","22/11/2016"
"Wolverhampton City Council","http://opendatacommunities.org/id/metropolitan-district-council/wolverhampton","CARPETRIGHT PLC","103.87","Wolverhampton Indoor and Open Market","5713","Equipment - Purchase","22/11/2016"
"Wolverhampton City Council","http://opendatacommunities.org/id/metropolitan-district-council/wolverhampton","SPORTSDIRECT.COM","18.99","Central Baths","5941","Equipment - Purchase","22/11/2016"
"Wolverhampton City Council","http://opendatacommunities.org/id/metropolitan-district-council/wolverhampton","PO WILLENHALL RD 5497","50.00","EIP Locality 1","6011","Financial Assistance In Exceptional Circ","22/11/2016"
"Wolverhampton City Council","http://opendatacommunities.org/id/metropolitan-district-council/wolverhampton","B&M RETAIL LTD","4.99","LAC Transitions Team","5310","Equipment - Purchase","22/11/2016"
"Wolverhampton City Council","http://opendatacommunities.org/id/metropolitan-district-council/wolverhampton","ARGOS LTD","60.89","LAC Transitions Team","5310","Equipment - Purchase","22/11/2016"
"Wolverhampton City Council","http://opendatacommunities.org/id/metropolitan-district-council/wolverhampton","Amazon UK Marketplace","11.65","Towers Outdoor Education Centre","5942","Books","22/11/2016"
"Wolverhampton City Council","http://opendatacommunities.org/id/metropolitan-district-council/wolverhampton","B&M RETAIL","88.17","Civic Centre","5310","Equipment - Purchase","22/11/2016"
"Wolverhampton City Council","http://opendatacommunities.org/id/metropolitan-district-council/wolverhampton","IDCLIMITED","108.15","Technical Support","5699","Equipment - Purchase","22/11/2016"
"Wolverhampton City Council","http://opendatacommunities.org/id/metropolitan-district-council/wolverhampton","Amazon UK Marketplace","13.37","Global Budgets","5942","Books","22/11/2016"
"Wolverhampton City Council","http://opendatacommunities.org/id/metropolitan-district-council/wolverhampton","B & Q 1243","3.54","Learning Disabilities Management","5211","Equipment - R & M","22/11/2016"
"Wolverhampton City Council","http://opendatacommunities.org/id/metropolitan-district-council/wolverhampton","B & Q 1243","24.91","Learning Disabilities Management","5211","Equipment - R & M","22/11/2016"
"Wolverhampton City Council","http://opendatacommunities.org/id/metropolitan-district-council/wolverhampton","ASDA HOME SHOPPING","-0.59","Ernest Bold Court","5411","Provisions (Not for resale)","22/11/2016"
"Wolverhampton City Council","http://opendatacommunities.org/id/metropolitan-district-council/wolverhampton","ASDA HOME SHOPPING","88.68","Ernest Bold Court","5411","Provisions (Not for resale)","22/11/2016"
"Wolverhampton City Council","http://opendatacommunities.org/id/metropolitan-district-council/wolverhampton","POST OFFICE COUNTER","2.37","Head of Service - CINCP","9402","Comms - Postage","22/11/2016"
"Wolverhampton City Council","http://opendatacommunities.org/id/metropolitan-district-council/wolverhampton","Virgin Trains","104.00","Scrutiny & Transparency","4112","Public Transport","22/11/2016"
"Wolverhampton City Council","http://opendatacommunities.org/id/metropolitan-district-council/wolverhampton","Virgin Trains","190.40","Scrutiny & Transparency","4112","Public Transport","22/11/2016"
"Wolverhampton City Council","http://opendatacommunities.org/id/metropolitan-district-council/wolverhampton","Virgin Trains","382.20","Members Expenses","4112","Public Transport","22/11/2016"
"Wolverhampton City Council","http://opendatacommunities.org/id/metropolitan-district-council/wolverhampton","Trainline","49.01","Inclusion Support","4112","Public Transport","22/11/2016"
"Wolverhampton City Council","http://opendatacommunities.org/id/metropolitan-district-council/wolverhampton","HATTERS HOSTEL LTD","165.00","CIN/CP S17 SW Unit - Area 5","7011","Accommodation Costs","22/11/2016"
"Wolverhampton City Council","http://opendatacommunities.org/id/metropolitan-district-council/wolverhampton","WWW.MOVERSANDSHAKERS.U","59.40","Strategic Director Place","8699","Conference Expenses","22/11/2016"
"Wolverhampton City Council","http://opendatacommunities.org/id/metropolitan-district-council/wolverhampton","Amazon UK Marketplace","10.99","Jane & Louise Wilson","5942","Equipment - Purchase","22/11/2016"
"Wolverhampton City Council","http://opendatacommunities.org/id/metropolitan-district-council/wolverhampton","LOYD WEDNESFIELD WOLVE","150.00","Duke Street Bungalows","6011","Services - Supplies & Services to users","22/11/2016"
"Wolverhampton City Council","http://opendatacommunities.org/id/metropolitan-district-council/wolverhampton","LOYD WEDNESFIELD WOLVE","150.00","Duke Street Bungalows","6011","Services - Supplies & Services to users","22/11/2016"
"Wolverhampton City Council","http://opendatacommunities.org/id/metropolitan-district-council/wolverhampton","Trainline","69.16","Public Health Commissioning","4112","Public Transport","22/11/2016"
"Wolverhampton City Council","http://opendatacommunities.org/id/metropolitan-district-council/wolverhampton","FACEWEST.CO.UK","90.00","Towers Outdoor Education Centre","5941","Equipment - Purchase","22/11/2016"
"Wolverhampton City Council","http://opendatacommunities.org/id/metropolitan-district-council/wolverhampton","iZ  direct furnitu","166.67","CIN/CP S17 SW Unit - Area 6","5999","Furniture","22/11/2016"
"Wolverhampton City Council","http://opendatacommunities.org/id/metropolitan-district-council/wolverhampton","FISH & CO SOLICITORS","215.00","CIN/CP S17 SW Unit - Area 6","8111","Services - Professional Fees","22/11/2016"
"Wolverhampton City Council","http://opendatacommunities.org/id/metropolitan-district-council/wolverhampton","G & M HALE (SUNDRIES)","60.80","College of Further Education","5992","Equipment - Purchase","22/11/2016"
"Wolverhampton City Council","http://opendatacommunities.org/id/metropolitan-district-council/wolverhampton","G & M HALE LTD","58.80","Creative Studies Delivery Area","5992","Materials for resale","22/11/2016"
"Wolverhampton City Council","http://opendatacommunities.org/id/metropolitan-district-council/wolverhampton","G & M HALE LTD","112.20","Discretionary Fund","5992","Materials","22/11/2016"
"Wolverhampton City Council","http://opendatacommunities.org/id/metropolitan-district-council/wolverhampton","G & M HALE LTD","43.20","Discretionary Fund","5992","Materials","22/11/2016"
"Wolverhampton City Council","http://opendatacommunities.org/id/metropolitan-district-council/wolverhampton","NETWORK WEST MIDLANDS","32.75","EIP Locality 3","9399","Services - Fees and Charges","22/11/2016"
"Wolverhampton City Council","http://opendatacommunities.org/id/metropolitan-district-council/wolverhampton","MEDIA & COMMUNICATIONS","155.00","Revenues","4812","Comms - Mobile Telephones","22/11/2016"
"Wolverhampton City Council","http://opendatacommunities.org/id/metropolitan-district-council/wolverhampton","SELECT SERVICES","101.25","Mayoral Expenses","7216","Laundry Expenses","22/11/2016"
"Wolverhampton City Council","http://opendatacommunities.org/id/metropolitan-district-council/wolverhampton","EXPEDIA","354.83","Adoption and Residence Team & Allowances","4722","Accommodation Costs","22/11/2016"
"Wolverhampton City Council","http://opendatacommunities.org/id/metropolitan-district-council/wolverhampton","WWW.MARINESCENE.CO.UK","20.66","Towers Outdoor Education Centre","5999","Equipment - Purchase","22/11/2016"
"Wolverhampton City Council","http://opendatacommunities.org/id/metropolitan-district-council/wolverhampton","WWW.ET-FOUNDATION.","395.00","AES Staff Development","8220","Training Expenses","22/11/2016"
"Wolverhampton City Council","http://opendatacommunities.org/id/metropolitan-district-council/wolverhampton","Trainline","84.15","Legal Services","4112","Public Transport","22/11/2016"
"Wolverhampton City Council","http://opendatacommunities.org/id/metropolitan-district-council/wolverhampton","G & M HALE (SUNDRIES)","37.00","Creative Studies Delivery Area","5992","Materials for resale","22/11/2016"
"Wolverhampton City Council","http://opendatacommunities.org/id/metropolitan-district-council/wolverhampton","NETWORK WEST MIDLANDS","15.00","European Liaison","9399","Financial Assistance In Exceptional Circ","21/11/2016"
"Wolverhampton City Council","http://opendatacommunities.org/id/metropolitan-district-council/wolverhampton","WEST COAST TRAINS","25.80","European Liaison","4112","Client Transport","21/11/2016"
"Wolverhampton City Council","http://opendatacommunities.org/id/metropolitan-district-council/wolverhampton","SUBLIME HQ PTY LTD","58.27","Digital Transformation Programme","5734","Computing - Purchase of Software","21/11/2016"
"Wolverhampton City Council","http://opendatacommunities.org/id/metropolitan-district-council/wolverhampton","BALSAMIQ","73.56","Digital Transformation Programme","5734","Computing - Purchase of Software","21/11/2016"
"Wolverhampton City Council","http://opendatacommunities.org/id/metropolitan-district-council/wolverhampton","Amazon UK Marketplace","279.88","Strategic ICTS (ICT Serv Budget)","5942","Computing - Purchase of Hardware","21/11/2016"
"Wolverhampton City Council","http://opendatacommunities.org/id/metropolitan-district-council/wolverhampton","CURRYS ONLINE","333.32","Strategic ICTS (ICT Serv Budget)","5732","Equipment - Purchase","21/11/2016"
"Wolverhampton City Council","http://opendatacommunities.org/id/metropolitan-district-council/wolverhampton","Virgin Trains","115.80","Audit Services","4112","Public Transport","21/11/2016"
"Wolverhampton City Council","http://opendatacommunities.org/id/metropolitan-district-council/wolverhampton","FACEBK ZDEACBAAR2","20.00","Communications & Marketing - General","7311","Marketing \ Non-staff advertising","21/11/2016"
"Wolverhampton City Council","http://opendatacommunities.org/id/metropolitan-district-council/wolverhampton","FACEBK JKW2V9JB92","600.31","Communications & Marketing - General","7311","Marketing \ Non-staff advertising","21/11/2016"
"Wolverhampton City Council","http://opendatacommunities.org/id/metropolitan-district-council/wolverhampton","WILKO RETAIL LIMIT","11.05","Old Hall Street Main","5722","Equipment - Purchase","21/11/2016"
"Wolverhampton City Council","http://opendatacommunities.org/id/metropolitan-district-council/wolverhampton","LOYD WEDNESFIELD WOLVE","100.00","EIP Locality 8","6011","Services - Bank Charges","21/11/2016"
"Wolverhampton City Council","http://opendatacommunities.org/id/metropolitan-district-council/wolverhampton","LOYD WEDNESFIELD WOLVE","100.00","EIP Locality 8","6011","Equipment - Purchase","21/11/2016"
"Wolverhampton City Council","http://opendatacommunities.org/id/metropolitan-district-council/wolverhampton","VIDEOBLOCKS.C866-282-5","124.02","Headstart Phase 3","7829","Subscriptions","21/11/2016"
"Wolverhampton City Council","http://opendatacommunities.org/id/metropolitan-district-council/wolverhampton","WISEPOPSCOM","40.79","City Direct","7372","Computing - Purchase of Software","21/11/2016"
"Wolverhampton City Council","http://opendatacommunities.org/id/metropolitan-district-council/wolverhampton","TIMPSON LTD","15.00","City Direct","7251","Fixtures and Fittings - R&M","21/11/2016"
"Wolverhampton City Council","http://opendatacommunities.org/id/metropolitan-district-council/wolverhampton","EB  SPECIAL EDUCATIONA","400.00","Parent / Partnership Service","7399","Training Expenses","21/11/2016"
"Wolverhampton City Council","http://opendatacommunities.org/id/metropolitan-district-council/wolverhampton","TIPPERS WOLVERHAMPTON","20.66","Parkfields Centre","5072","R&M - Departmental planned (external)","21/11/2016"
"Wolverhampton City Council","http://opendatacommunities.org/id/metropolitan-district-council/wolverhampton","SAINSBURYS 2040","60.00","Duke Street Bungalows","5411","Provisions (Not for resale)","21/11/2016"
"Wolverhampton City Council","http://opendatacommunities.org/id/metropolitan-district-council/wolverhampton","WILKO.COM","45.50","Referral Team CIN - S17","5722","Equipment - Purchase","21/11/2016"
"Wolverhampton City Council","http://opendatacommunities.org/id/metropolitan-district-council/wolverhampton","THE POST OFFICE","4.89","Jane & Louise Wilson","9402","Comms - Postage","21/11/2016"
"Wolverhampton City Council","http://opendatacommunities.org/id/metropolitan-district-council/wolverhampton","TESCO DELIVERY SAVER2","2.50","Towers Outdoor Education Centre","5968","Subscriptions","21/11/2016"
"Wolverhampton City Council","http://opendatacommunities.org/id/metropolitan-district-council/wolverhampton","WWW.STAPLES.CO.UK","52.27","Towers Outdoor Education Centre","5943","Stationery","21/11/2016"
"Wolverhampton City Council","http://opendatacommunities.org/id/metropolitan-district-council/wolverhampton","123 REG R/T","27.96","Technical Support","5968","Subscriptions","21/11/2016"
"Wolverhampton City Council","http://opendatacommunities.org/id/metropolitan-district-council/wolverhampton","AMAZON UK RETAIL AMAZO","27.39","Global Budgets","5999","Books","21/11/2016"
"Wolverhampton City Council","http://opendatacommunities.org/id/metropolitan-district-council/wolverhampton","Amazon UK Marketplace","4.57","Global Budgets","5942","Books","21/11/2016"
"Wolverhampton City Council","http://opendatacommunities.org/id/metropolitan-district-council/wolverhampton","ASDA HOME SHOPPING","0.43","Ernest Bold Court","5411","Provisions (Not for resale)","21/11/2016"
"Wolverhampton City Council","http://opendatacommunities.org/id/metropolitan-district-council/wolverhampton","ASDA HOME SHOPPING","102.27","Ernest Bold Court","5411","Provisions (Not for resale)","21/11/2016"
"Wolverhampton City Council","http://opendatacommunities.org/id/metropolitan-district-council/wolverhampton","PREMIER INN","49.17","Democratic Support","3811","Subsistence","21/11/2016"
"Wolverhampton City Council","http://opendatacommunities.org/id/metropolitan-district-council/wolverhampton","Amazon UK Marketplace","10.91","Licensing - General","5942","Equipment - Purchase","21/11/2016"
"Wolverhampton City Council","http://opendatacommunities.org/id/metropolitan-district-council/wolverhampton","BRITANNIA","98.12","CIN/CP S17 SW Unit - Area 5","7011","Accommodation Costs","21/11/2016"
"Wolverhampton City Council","http://opendatacommunities.org/id/metropolitan-district-council/wolverhampton","BRITANNIA","88.54","CIN/CP S17 SW Unit - Area 5","7011","Accommodation Costs","21/11/2016"
"Wolverhampton City Council","http://opendatacommunities.org/id/metropolitan-district-council/wolverhampton","PRINTCARRIER.COM","67.00","Civic & Wulfrun In-house Promotions","2741","Marketing \ Non-staff advertising","21/11/2016"
"Wolverhampton City Council","http://opendatacommunities.org/id/metropolitan-district-council/wolverhampton","BEST WESTERN HOTELS","58.75","Licensing - General","3502","Accommodation Costs","21/11/2016"
"Wolverhampton City Council","http://opendatacommunities.org/id/metropolitan-district-council/wolverhampton","HOBBY CRAFT LTD","4.17","Mayoral Expenses","5970","Hospitality","21/11/2016"
"Wolverhampton City Council","http://opendatacommunities.org/id/metropolitan-district-council/wolverhampton","CT WOLVERHAMPTON","75.00","CIN/CP S17 SW Unit - Area 1","8398","Services - Supplies & Services to users","21/11/2016"
"Wolverhampton City Council","http://opendatacommunities.org/id/metropolitan-district-council/wolverhampton","SAINSBURYS","60.00","Mental Health Assessment & Care Mgmt","6011","Financial Assistance In Exceptional Circ","21/11/2016"
"Wolverhampton City Council","http://opendatacommunities.org/id/metropolitan-district-council/wolverhampton","PREMIER INN 44536490","208.33","Strategy & Development","5812","Educ Trips, Holidays, Outings, Activity","21/11/2016"
"Wolverhampton City Council","http://opendatacommunities.org/id/metropolitan-district-council/wolverhampton","Virgin Trains","38.50","Strategy & Development","4112","Public Transport","21/11/2016"
"Wolverhampton City Council","http://opendatacommunities.org/id/metropolitan-district-council/wolverhampton","Amazon Prime","7.99","Licensing - General","5968","Comms - Postage","21/11/2016"
"Wolverhampton City Council","http://opendatacommunities.org/id/metropolitan-district-council/wolverhampton","ASDA HOME SHOPPING","-22.35","Education And Access","5411","Provisions (Not for resale)","18/11/2016"
"Wolverhampton City Council","http://opendatacommunities.org/id/metropolitan-district-council/wolverhampton","MARKS&SPENCER PLC SACA","15.83","Jane & Louise Wilson","5411","Provisions (Not for resale)","18/11/2016"
"Wolverhampton City Council","http://opendatacommunities.org/id/metropolitan-district-council/wolverhampton","ASDA HOME SHOPPING","64.78","Education And Access","5411","Provisions (Not for resale)","18/11/2016"
"Wolverhampton City Council","http://opendatacommunities.org/id/metropolitan-district-council/wolverhampton","POUNDLAND LTD 1463","15.00","Visitor Economy - Development","5310","Equipment - Purchase","18/11/2016"
"Wolverhampton City Council","http://opendatacommunities.org/id/metropolitan-district-council/wolverhampton","B&M RETAIL","12.50","Learning Disabilities Management","5310","Stationery","18/11/2016"
"Wolverhampton City Council","http://opendatacommunities.org/id/metropolitan-district-council/wolverhampton","DMM INTERNATIONAL LTD","210.00","Towers Outdoor Education Centre","5999","Equipment - Purchase","18/11/2016"
"Wolverhampton City Council","http://opendatacommunities.org/id/metropolitan-district-council/wolverhampton","THE RANGE","23.97","Ernest Bold Court","5311","Equipment - Purchase","18/11/2016"
"Wolverhampton City Council","http://opendatacommunities.org/id/metropolitan-district-council/wolverhampton","SAINSBURYS 2040","10.45","Ernest Bold Court","5411","Provisions (Not for resale)","18/11/2016"
"Wolverhampton City Council","http://opendatacommunities.org/id/metropolitan-district-council/wolverhampton","Amazon UK Marketplace","-0.90","Environmental Health - Pub Prot - Gen","5999","Equipment - Purchase","18/11/2016"
"Wolverhampton City Council","http://opendatacommunities.org/id/metropolitan-district-council/wolverhampton","BRITANNIA","96.67","CIN/CP S17 SW Unit - Area 5","7011","Services - Supplies & Services to users","18/11/2016"
"Wolverhampton City Council","http://opendatacommunities.org/id/metropolitan-district-council/wolverhampton","TATE PICTURE LIBRARY","58.00","Art Gallery","5971","Marketing \ Non-staff advertising","18/11/2016"
"Wolverhampton City Council","http://opendatacommunities.org/id/metropolitan-district-council/wolverhampton","WWW.WINCHESTER.AC.UK","140.00","Workforce Development","8220","Training Expenses","18/11/2016"
"Wolverhampton City Council","http://opendatacommunities.org/id/metropolitan-district-council/wolverhampton","REGISTRARS OFFICE","60.00","Head of Service - CINCP","8299","Services - Professional Fees","18/11/2016"
"Wolverhampton City Council","http://opendatacommunities.org/id/metropolitan-district-council/wolverhampton","B & Q 1243","33.33","Ernest Bold Court","5211","Materials","18/11/2016"
"Wolverhampton City Council","http://opendatacommunities.org/id/metropolitan-district-council/wolverhampton","WEST COAST TRAINS","169.80","HR Advice","4112","Public Transport","18/11/2016"
"Wolverhampton City Council","http://opendatacommunities.org/id/metropolitan-district-council/wolverhampton","WEBSTAFF/ATP PAYMENTS","9.17","LAC Transitions Team","9399","Client Allowances","18/11/2016"
"Wolverhampton City Council","http://opendatacommunities.org/id/metropolitan-district-council/wolverhampton","RUGBY REGISTER OFFICE","8.33","LAC Transitions Team","9399","Client Allowances","18/11/2016"
"Wolverhampton City Council","http://opendatacommunities.org/id/metropolitan-district-council/wolverhampton","CURRYS ONLINE","333.32","EIP Locality 4","5732","Grant Payments","18/11/2016"
"Wolverhampton City Council","http://opendatacommunities.org/id/metropolitan-district-council/wolverhampton","BLOOMS MENSWEAR","46.98","European Liaison","5611","Clothing / Uniforms","18/11/2016"
"Wolverhampton City Council","http://opendatacommunities.org/id/metropolitan-district-council/wolverhampton","ARGOS LTD","14.97","European Liaison","5310","Computing - Purchase of Hardware","18/11/2016"
"Wolverhampton City Council","http://opendatacommunities.org/id/metropolitan-district-council/wolverhampton","REGISTRARS OFFICE","10.00","European Liaison","8299","Financial Assistance In Exceptional Circ","18/11/2016"
"Wolverhampton City Council","http://opendatacommunities.org/id/metropolitan-district-council/wolverhampton","CUMMINGS BROTHERS LOCK","8.33","Statutory Services (10RM)","7399","Equipment - Purchase","18/11/2016"
"Wolverhampton City Council","http://opendatacommunities.org/id/metropolitan-district-council/wolverhampton","DVLA PR ONLINE","80.00","Mayoral Expenses","9399","Services - Fees and Charges","18/11/2016"
"Wolverhampton City Council","http://opendatacommunities.org/id/metropolitan-district-council/wolverhampton","Amazon UK Marketplace","7.19","CIN/CP S17 SW Unit - Area 3","5942","Books","18/11/2016"
"Wolverhampton City Council","http://opendatacommunities.org/id/metropolitan-district-council/wolverhampton","HMCOURTS-SERVICE.G","20.00","Mental Health Assessment & Care Mgmt","9222","Services - Fees and Charges","18/11/2016"
"Wolverhampton City Council","http://opendatacommunities.org/id/metropolitan-district-council/wolverhampton","NATWEST BANK","200.00","EIP Locality 8","6011","Equipment - Purchase","18/11/2016"
"Wolverhampton City Council","http://opendatacommunities.org/id/metropolitan-district-council/wolverhampton","CENTRO HOUSE","8.33","LAC Transitions Team","4112","Public Transport","18/11/2016"
"Wolverhampton City Council","http://opendatacommunities.org/id/metropolitan-district-council/wolverhampton","HUGHES","404.98","LAC Transitions Team","5732","Client Allowances","18/11/2016"
"Wolverhampton City Council","http://opendatacommunities.org/id/metropolitan-district-council/wolverhampton","HUGHES","125.39","LAC Transitions Team","5732","Client Allowances","18/11/2016"
"Wolverhampton City Council","http://opendatacommunities.org/id/metropolitan-district-council/wolverhampton","DUNELM ONLINE ORDER","141.66","LAC Transitions Team","5714","Client Allowances","18/11/2016"
"Wolverhampton City Council","http://opendatacommunities.org/id/metropolitan-district-council/wolverhampton","WOLVERHAMPTON CC","6.50","Headstart Phase 3","7523","Car Allowances","18/11/2016"
"Wolverhampton City Council","http://opendatacommunities.org/id/metropolitan-district-council/wolverhampton","ARGOS RETAIL GROUP","13.99","LAC Transitions Team","5310","Client Allowances","17/11/2016"
"Wolverhampton City Council","http://opendatacommunities.org/id/metropolitan-district-council/wolverhampton","WWW.JUSTGLOVES.CO.UK","32.45","Central Baths","5999","Equipment - Purchase","17/11/2016"
"Wolverhampton City Council","http://opendatacommunities.org/id/metropolitan-district-council/wolverhampton","Amazon UK Marketplace","16.14","Bert Williams Leisure Centre","5942","Equipment - Purchase","17/11/2016"
"Wolverhampton City Council","http://opendatacommunities.org/id/metropolitan-district-council/wolverhampton","Amazon UK Marketplace","94.99","CIN/CP S17 SW Unit - Area 3","5942","Books","17/11/2016"
"Wolverhampton City Council","http://opendatacommunities.org/id/metropolitan-district-council/wolverhampton","PRIMARK","35.83","LAC Transitions Team","5651","Client Allowances","17/11/2016"
"Wolverhampton City Council","http://opendatacommunities.org/id/metropolitan-district-council/wolverhampton","CARVER/WOLVERHAMPTON/L","10.35","Culwell Street Depot","5211","R&M - Departmental planned (external)","17/11/2016"
"Wolverhampton City Council","http://opendatacommunities.org/id/metropolitan-district-council/wolverhampton","O E METCALFE","347.10","Towers Outdoor Education Centre","5499","Catering","17/11/2016"
"Wolverhampton City Council","http://opendatacommunities.org/id/metropolitan-district-council/wolverhampton","ASDA HOME SHOPPING","35.18","EIP Locality 4","5411","Grant Payments","17/11/2016"
"Wolverhampton City Council","http://opendatacommunities.org/id/metropolitan-district-council/wolverhampton","WEST MIDLANDS TRAV","53.00","European Liaison","4131","Client Transport","17/11/2016"
"Wolverhampton City Council","http://opendatacommunities.org/id/metropolitan-district-council/wolverhampton","WEST MIDLANDS TRAV","53.00","European Liaison","4131","Client Transport","17/11/2016"
"Wolverhampton City Council","http://opendatacommunities.org/id/metropolitan-district-council/wolverhampton","ARGOS RETAIL GROUP","97.97","LAC Transitions Team","5310","Client Allowances","17/11/2016"
"Wolverhampton City Council","http://opendatacommunities.org/id/metropolitan-district-council/wolverhampton","SPAR SIOP TANDDERWEN","47.76","Towers Outdoor Education Centre","5411","Provisions (Not for resale)","17/11/2016"
"Wolverhampton City Council","http://opendatacommunities.org/id/metropolitan-district-council/wolverhampton","AMAZON UK RETAIL AMAZO","129.75","Technical Support","5999","Equipment - Purchase","17/11/2016"
"Wolverhampton City Council","http://opendatacommunities.org/id/metropolitan-district-council/wolverhampton","Amazon EU","475.77","Technical Support","5969","Equipment - Purchase","17/11/2016"
"Wolverhampton City Council","http://opendatacommunities.org/id/metropolitan-district-council/wolverhampton","Amazon EU","51.94","Technical Support","5969","Equipment - Purchase","17/11/2016"
"Wolverhampton City Council","http://opendatacommunities.org/id/metropolitan-district-council/wolverhampton","PAYPAL  HOWARDBSTAT","39.44","Art Gallery","5945","Equipment - Purchase","17/11/2016"
"Wolverhampton City Council","http://opendatacommunities.org/id/metropolitan-district-council/wolverhampton","Amazon UK Marketplace","11.48","Environmental Health - Pub Prot - Gen","5942","Equipment - Purchase","17/11/2016"
"Wolverhampton City Council","http://opendatacommunities.org/id/metropolitan-district-council/wolverhampton","BRITANNIA","122.00","CIN/CP S17 SW Unit - Area 5","7011","Accommodation Costs","17/11/2016"
"Wolverhampton City Council","http://opendatacommunities.org/id/metropolitan-district-council/wolverhampton","YMLP.COM","63.00","Art Gallery","7372","Computing - Purchase of Software","17/11/2016"
"Wolverhampton City Council","http://opendatacommunities.org/id/metropolitan-district-council/wolverhampton","Trainline","226.85","CIN/CP Social Work Unit - Area 4","4112","Public Transport","17/11/2016"
"Wolverhampton City Council","http://opendatacommunities.org/id/metropolitan-district-council/wolverhampton","UNTOUCHABLES","2.92","Education Catering - General Overheads","5231","Materials","17/11/2016"
"Wolverhampton City Council","http://opendatacommunities.org/id/metropolitan-district-council/wolverhampton","Trainline","230.93","CIN/CP Social Work Unit - Area 4","4112","Public Transport","17/11/2016"
"Wolverhampton City Council","http://opendatacommunities.org/id/metropolitan-district-council/wolverhampton","ARGOS RETAIL GROUP","32.45","Physical & Sensory Disabilities Mgmt","5310","Equipment - Purchase","17/11/2016"
"Wolverhampton City Council","http://opendatacommunities.org/id/metropolitan-district-council/wolverhampton","WWW.TINYBOX.COM","32.24","Mayoral Expenses","5947","Hospitality","17/11/2016"
"Wolverhampton City Council","http://opendatacommunities.org/id/metropolitan-district-council/wolverhampton","WWW.BCLM.CO.UK","188.00","EIP Locality 7","7999","Educ Trips, Holidays, Outings, Activity","17/11/2016"
"Wolverhampton City Council","http://opendatacommunities.org/id/metropolitan-district-council/wolverhampton","WWW.BCLM.CO.UK","218.00","EIP Locality 7","7999","Educ Trips, Holidays, Outings, Activity","17/11/2016"
"Wolverhampton City Council","http://opendatacommunities.org/id/metropolitan-district-council/wolverhampton","NOVOTEL HOTELS","30.83","Mayoral Expenses","3642","Accommodation Costs","17/11/2016"
"Wolverhampton City Council","http://opendatacommunities.org/id/metropolitan-district-council/wolverhampton","NATIONWIDE","10.00","Inclusion Support","6011","Financial Assistance In Exceptional Circ","16/11/2016"
"Wolverhampton City Council","http://opendatacommunities.org/id/metropolitan-district-council/wolverhampton","BRITANNIA","122.25","CIN/CP S17 SW Unit - Area 5","7011","Accommodation Costs","16/11/2016"
"Wolverhampton City Council","http://opendatacommunities.org/id/metropolitan-district-council/wolverhampton","PAYPAL  INSIDERMEDI","310.00","Service Director City Assets","5942","Books","16/11/2016"
"Wolverhampton City Council","http://opendatacommunities.org/id/metropolitan-district-council/wolverhampton","Amazon UK Marketplace","27.08","Visitor Economy - Development","5942","Equipment - Purchase","16/11/2016"
"Wolverhampton City Council","http://opendatacommunities.org/id/metropolitan-district-council/wolverhampton","Trainline","102.56","AES Staff Development","4112","Public Transport","16/11/2016"
"Wolverhampton City Council","http://opendatacommunities.org/id/metropolitan-district-council/wolverhampton","PAYPAL  AUTISMWESTM","90.00","SEN Early Years Team","8999","Services - Professional Fees","16/11/2016"
"Wolverhampton City Council","http://opendatacommunities.org/id/metropolitan-district-council/wolverhampton","ASDA SUPERSTORE","13.11","CIN/CP S17 SW Unit - Area 5","5411","Provisions (Not for resale)","16/11/2016"
"Wolverhampton City Council","http://opendatacommunities.org/id/metropolitan-district-council/wolverhampton","ASDA SUPERSTORE","30.09","CIN/CP S17 SW Unit - Area 5","5411","Provisions (Not for resale)","16/11/2016"
"Wolverhampton City Council","http://opendatacommunities.org/id/metropolitan-district-council/wolverhampton","Trainline","142.60","CIN/CP S17 SW Unit - Area 8","4112","Client Transport","16/11/2016"
"Wolverhampton City Council","http://opendatacommunities.org/id/metropolitan-district-council/wolverhampton","PREMIER INN","143.32","Adoption and Residence Team & Allowances","3811","Accommodation Costs","16/11/2016"
"Wolverhampton City Council","http://opendatacommunities.org/id/metropolitan-district-council/wolverhampton","REGISTRARS OFFICE","21.00","Adoption and Residence Team & Allowances","8299","Services - Fees and Charges","16/11/2016"
"Wolverhampton City Council","http://opendatacommunities.org/id/metropolitan-district-council/wolverhampton","NOTEMACHINE","250.00","CIN/CP S17 SW Unit - Area 6","6011","Financial Assistance In Exceptional Circ","16/11/2016"
"Wolverhampton City Council","http://opendatacommunities.org/id/metropolitan-district-council/wolverhampton","PRONTAPRINT WOLVERHAMP","30.00","Jane & Louise Wilson","2741","Publications","16/11/2016"
"Wolverhampton City Council","http://opendatacommunities.org/id/metropolitan-district-council/wolverhampton","SCREWFIX DIRECT","72.84","Telecare","5211","Materials","16/11/2016"
"Wolverhampton City Council","http://opendatacommunities.org/id/metropolitan-district-council/wolverhampton","Trainline","72.01","CIN/CP S17 SW Unit - Area 2","4112","Public Transport","16/11/2016"
"Wolverhampton City Council","http://opendatacommunities.org/id/metropolitan-district-council/wolverhampton","CUMMINGS BROTHERS LOCK","16.50","Culwell Street Depot","7399","R&M - Departmental planned (external)","16/11/2016"
"Wolverhampton City Council","http://opendatacommunities.org/id/metropolitan-district-council/wolverhampton","CARVER/WOLVERHAMPTON/L","39.12","Culwell Street Depot","5211","R&M - Departmental planned (external)","16/11/2016"
"Wolverhampton City Council","http://opendatacommunities.org/id/metropolitan-district-council/wolverhampton","Trainline","18.92","SEN Special Education Admin","4112","Public Transport","16/11/2016"
"Wolverhampton City Council","http://opendatacommunities.org/id/metropolitan-district-council/wolverhampton","TESCO STORES 5194","197.15","Towers Outdoor Education Centre","5411","Provisions (Not for resale)","16/11/2016"
"Wolverhampton City Council","http://opendatacommunities.org/id/metropolitan-district-council/wolverhampton","BURTECH CYF","449.95","Towers Outdoor Education Centre","7538","Vehicle Maintenance - Repairs","16/11/2016"
"Wolverhampton City Council","http://opendatacommunities.org/id/metropolitan-district-council/wolverhampton","Virgin Trains","7.50","Children & Young People Support Costs","4112","Public Transport","16/11/2016"
"Wolverhampton City Council","http://opendatacommunities.org/id/metropolitan-district-council/wolverhampton","THE MAKATON CHARIT","52.00","Learning Technologies","8299","Training Expenses","16/11/2016"
"Wolverhampton City Council","http://opendatacommunities.org/id/metropolitan-district-council/wolverhampton","ST DAVIDS HOTEL AND SP","87.83","Learning Technologies","7011","Accommodation Costs","16/11/2016"
"Wolverhampton City Council","http://opendatacommunities.org/id/metropolitan-district-council/wolverhampton","Trainline","16.07","Head of Service - CINCP","4112","Public Transport","16/11/2016"
"Wolverhampton City Council","http://opendatacommunities.org/id/metropolitan-district-council/wolverhampton","Virgin Trains","384.00","Planning","4112","Public Transport","16/11/2016"
"Wolverhampton City Council","http://opendatacommunities.org/id/metropolitan-district-council/wolverhampton","NOVOTEL HOTELS","30.83","Mayoral Expenses","3642","Accommodation Costs","16/11/2016"
"Wolverhampton City Council","http://opendatacommunities.org/id/metropolitan-district-council/wolverhampton","WWW.MAPLIN.CO.UK","58.32","Licensing - General","5732","Equipment - Purchase","16/11/2016"
"Wolverhampton City Council","http://opendatacommunities.org/id/metropolitan-district-council/wolverhampton","PAYPAL  GADGETEXPRE","23.32","Licensing - General","5732","Equipment - Purchase","16/11/2016"
"Wolverhampton City Council","http://opendatacommunities.org/id/metropolitan-district-council/wolverhampton","PAYPAL  STRUTSPARTY","68.99","Licensing - General","5699","Equipment - Purchase","16/11/2016"
"Wolverhampton City Council","http://opendatacommunities.org/id/metropolitan-district-council/wolverhampton","PAYPAL  SURESHOTSLT","11.28","Licensing - General","5641","Equipment - Purchase","16/11/2016"
"Wolverhampton City Council","http://opendatacommunities.org/id/metropolitan-district-council/wolverhampton","PAYPAL  SHENZHENZEH","2.44","Licensing - General","5169","Equipment - Purchase","16/11/2016"
"Wolverhampton City Council","http://opendatacommunities.org/id/metropolitan-district-council/wolverhampton","ASDA STORES 4452","20.80","EIP Locality 4","5411","Grant Payments","16/11/2016"
"Wolverhampton City Council","http://opendatacommunities.org/id/metropolitan-district-council/wolverhampton","ONLINECARPETS.COUK","84.18","LAC Transitions Team","5713","Client Allowances","16/11/2016"
"Wolverhampton City Council","http://opendatacommunities.org/id/metropolitan-district-council/wolverhampton","SCREWFIX DIRECT","93.48","Parkfields Centre","5211","Materials","16/11/2016"
"Wolverhampton City Council","http://opendatacommunities.org/id/metropolitan-district-council/wolverhampton","WWW.SHROPSHIRE-C.GOV.","11.00","LAC Transitions Team","8220","Client Allowances","16/11/2016"
"Wolverhampton City Council","http://opendatacommunities.org/id/metropolitan-district-council/wolverhampton","Trainline","147.59","Assistant Director - Public Health","4112","Public Transport","16/11/2016"
"Wolverhampton City Council","http://opendatacommunities.org/id/metropolitan-district-council/wolverhampton","SEVERN TRENT WATER","100.01","LAC Transitions Team","4900","Client Allowances","16/11/2016"
"Wolverhampton City Council","http://opendatacommunities.org/id/metropolitan-district-council/wolverhampton","POUNDSTRETCHER 147","15.42","LAC Transitions Team","5714","Client Allowances","16/11/2016"
"Wolverhampton City Council","http://opendatacommunities.org/id/metropolitan-district-council/wolverhampton","RESPONSE TECHNICAL SVS","164.00","Archives","5044","Printing","16/11/2016"
"Wolverhampton City Council","http://opendatacommunities.org/id/metropolitan-district-council/wolverhampton","NAMESCO","29.98","Work Box","4816","Computing - Purchase of Software","16/11/2016"
"Wolverhampton City Council","http://opendatacommunities.org/id/metropolitan-district-council/wolverhampton","WWW.HANGINGSYSTEMS.COM","730.47","Creative Studies Delivery Area","5231","Materials","15/11/2016"
"Wolverhampton City Council","http://opendatacommunities.org/id/metropolitan-district-council/wolverhampton","W M MORRISONS.COM","167.00","Discretionary Fund","5411","Materials","15/11/2016"
"Wolverhampton City Council","http://opendatacommunities.org/id/metropolitan-district-council/wolverhampton","WM MORRISON 024","5.00","Ernest Bold Court","5411","Provisions (Not for resale)","15/11/2016"
"Wolverhampton City Council","http://opendatacommunities.org/id/metropolitan-district-council/wolverhampton","WWW.CARESHOP.CO.UK","47.50","Ernest Bold Court","5999","Equipment - Purchase","15/11/2016"
"Wolverhampton City Council","http://opendatacommunities.org/id/metropolitan-district-council/wolverhampton","LOYD BILSTON","10.00","Ernest Bold Court","6011","Provisions (Not for resale)","15/11/2016"
"Wolverhampton City Council","http://opendatacommunities.org/id/metropolitan-district-council/wolverhampton","WOLVERHAMPTON CC","12.50","Headstart Phase 3","7523","Car Allowances","15/11/2016"
"Wolverhampton City Council","http://opendatacommunities.org/id/metropolitan-district-council/wolverhampton","WEST COAST TRAINS","149.17","City Direct","4112","Public Transport","15/11/2016"
"Wolverhampton City Council","http://opendatacommunities.org/id/metropolitan-district-council/wolverhampton","WEST COAST TRAINS","42.00","City Direct","4112","Public Transport","15/11/2016"
"Wolverhampton City Council","http://opendatacommunities.org/id/metropolitan-district-council/wolverhampton","TRAVELODGE","93.29","City Direct","3615","Services - Supplies & Services to users","15/11/2016"
"Wolverhampton City Council","http://opendatacommunities.org/id/metropolitan-district-council/wolverhampton","LOOP11.COM","163.68","City Direct","7372","Computing - Purchase of Software","15/11/2016"
"Wolverhampton City Council","http://opendatacommunities.org/id/metropolitan-district-council/wolverhampton","HOBBY CRAFT LTD","16.67","Education And Access","5970","Materials","15/11/2016"
"Wolverhampton City Council","http://opendatacommunities.org/id/metropolitan-district-council/wolverhampton","YOUNG`S SHOE REPAIRS L","50.00","Wolverhampton Indoor and Open Market","7251","Fixtures and Fittings - R&M","15/11/2016"
"Wolverhampton City Council","http://opendatacommunities.org/id/metropolitan-district-council/wolverhampton","UOW PRINT SERVICES","50.77","Mayoral Expenses","8220","Printing","15/11/2016"
"Wolverhampton City Council","http://opendatacommunities.org/id/metropolitan-district-council/wolverhampton","SAINSBURYS 2040","39.20","Duke Street Bungalows","5411","Provisions (Not for resale)","15/11/2016"
"Wolverhampton City Council","http://opendatacommunities.org/id/metropolitan-district-council/wolverhampton","Amazon UK Marketplace","26.91","Civic Halls Non Direct Management A/C","5942","Books","15/11/2016"
"Wolverhampton City Council","http://opendatacommunities.org/id/metropolitan-district-council/wolverhampton","WOLVERHAMPTON YMCA","209.60","No Recourse to Public Funds - CIN/CP","7997","Accommodation Costs","15/11/2016"
"Wolverhampton City Council","http://opendatacommunities.org/id/metropolitan-district-council/wolverhampton","UNTOUCHABLES","11.25","Education Catering - General Overheads","5231","Materials","15/11/2016"
"Wolverhampton City Council","http://opendatacommunities.org/id/metropolitan-district-council/wolverhampton","Trainline","25.55","Adoption and Residence Team & Allowances","4112","Public Transport","15/11/2016"
"Wolverhampton City Council","http://opendatacommunities.org/id/metropolitan-district-council/wolverhampton","CT WOLVERHAMPTON","155.00","CIN/CP S17 SW Unit - Area 7","8398","Services - Supplies & Services to users","15/11/2016"
"Wolverhampton City Council","http://opendatacommunities.org/id/metropolitan-district-council/wolverhampton","THE POST OFFICE","110.00","Macmillan Welfare Rights","9402","Comms - Postage","15/11/2016"
"Wolverhampton City Council","http://opendatacommunities.org/id/metropolitan-district-council/wolverhampton","ARGOS RETAIL GROUP","36.46","Ernest Bold Court","5310","Equipment - Purchase","15/11/2016"
"Wolverhampton City Council","http://opendatacommunities.org/id/metropolitan-district-council/wolverhampton","G & M HALE (SUNDRIES)","15.00","Creative Studies Delivery Area","5992","Equipment - Purchase","15/11/2016"
"Wolverhampton City Council","http://opendatacommunities.org/id/metropolitan-district-council/wolverhampton","G & M HALE (SUNDRIES)","19.40","Discretionary Fund","5992","Materials","15/11/2016"
"Wolverhampton City Council","http://opendatacommunities.org/id/metropolitan-district-council/wolverhampton","G & M HALE LTD","89.00","Discretionary Fund","5992","Materials","15/11/2016"
"Wolverhampton City Council","http://opendatacommunities.org/id/metropolitan-district-council/wolverhampton","G & M HALE LTD","65.85","Discretionary Fund","5992","Materials","15/11/2016"
"Wolverhampton City Council","http://opendatacommunities.org/id/metropolitan-district-council/wolverhampton","G & M HALE LTD","15.75","Discretionary Fund","5992","Materials","15/11/2016"
"Wolverhampton City Council","http://opendatacommunities.org/id/metropolitan-district-council/wolverhampton","Cross Country Trains","227.50","School Improvement","4112","Public Transport","15/11/2016"
"Wolverhampton City Council","http://opendatacommunities.org/id/metropolitan-district-council/wolverhampton","ARGOS LTD","22.49","EIP Locality 4","5310","Equipment - Purchase","15/11/2016"
"Wolverhampton City Council","http://opendatacommunities.org/id/metropolitan-district-council/wolverhampton","ALDI","59.04","EIP Locality 4","5411","Grant Payments","15/11/2016"
"Wolverhampton City Council","http://opendatacommunities.org/id/metropolitan-district-council/wolverhampton","LOVE2SHOP.CO.UK","354.25","European Liaison","8641","Clothing / Uniforms","15/11/2016"
"Wolverhampton City Council","http://opendatacommunities.org/id/metropolitan-district-council/wolverhampton","WEST MIDLANDS TRAV","53.00","European Liaison","4131","Client Transport","15/11/2016"
"Wolverhampton City Council","http://opendatacommunities.org/id/metropolitan-district-council/wolverhampton","LIDDELL ELECTRICAL DIS","26.40","Caretakers Community Centre","5065","Equipment - R & M","15/11/2016"
"Wolverhampton City Council","http://opendatacommunities.org/id/metropolitan-district-council/wolverhampton","PARCELFORCE WORLDWIDE","17.35","Aldersley Leisure Village","4214","Comms - Postage","15/11/2016"
"Wolverhampton City Council","http://opendatacommunities.org/id/metropolitan-district-council/wolverhampton","WWW.CBBC.ORG","700.00","International Trade","8999","Grant Payments","15/11/2016"
"Wolverhampton City Council","http://opendatacommunities.org/id/metropolitan-district-council/wolverhampton","WWW.EMBLTD.CO.UK","675.00","International Trade","7399","Grant Payments","15/11/2016"
"Wolverhampton City Council","http://opendatacommunities.org/id/metropolitan-district-council/wolverhampton","ASDA HOME SHOPPING","-3.80","Upper Pendeford Farm Childrens Home","5411","Provisions (Not for resale)","15/11/2016"
"Wolverhampton City Council","http://opendatacommunities.org/id/metropolitan-district-council/wolverhampton","ASDA HOME SHOPPING","297.25","Upper Pendeford Farm Childrens Home","5411","Provisions (Not for resale)","15/11/2016"
"Wolverhampton City Council","http://opendatacommunities.org/id/metropolitan-district-council/wolverhampton","SCREWFIX DIRECT LT","99.97","Cleaning of Buildings - General","5211","Protective Clothing","15/11/2016"
"Wolverhampton City Council","http://opendatacommunities.org/id/metropolitan-district-council/wolverhampton","123 REG R/T","41.94","Technical Support","5968","Subscriptions","15/11/2016"
"Wolverhampton City Council","http://opendatacommunities.org/id/metropolitan-district-council/wolverhampton","Amazon UK Marketplace","23.99","Technical Support","5942","Equipment - Purchase","15/11/2016"
"Wolverhampton City Council","http://opendatacommunities.org/id/metropolitan-district-council/wolverhampton","ASDA HOME SHOPPING","-0.15","Ernest Bold Court","5411","Provisions (Not for resale)","15/11/2016"
"Wolverhampton City Council","http://opendatacommunities.org/id/metropolitan-district-council/wolverhampton","ASDA HOME SHOPPING","90.54","Ernest Bold Court","5411","Provisions (Not for resale)","15/11/2016"
"Wolverhampton City Council","http://opendatacommunities.org/id/metropolitan-district-council/wolverhampton","EXPEDIA","3.00","Inclusion Support","4722","Public Transport","15/11/2016"
"Wolverhampton City Council","http://opendatacommunities.org/id/metropolitan-district-council/wolverhampton","FLYBE BSP 2671064184140","196.06","Inclusion Support","4511","Public Transport","15/11/2016"
"Wolverhampton City Council","http://opendatacommunities.org/id/metropolitan-district-council/wolverhampton","Amazon UK Marketplace","33.29","Environmental Health - Pub Prot - Gen","5999","Equipment - Purchase","15/11/2016"
"Wolverhampton City Council","http://opendatacommunities.org/id/metropolitan-district-council/wolverhampton","Amazon UK Marketplace","5.38","Environmental Health - Pub Prot - Gen","5942","Equipment - Purchase","15/11/2016"
"Wolverhampton City Council","http://opendatacommunities.org/id/metropolitan-district-council/wolverhampton","THE BOOK PEOPLE","52.97","Global Budgets","5942","Books","15/11/2016"
"Wolverhampton City Council","http://opendatacommunities.org/id/metropolitan-district-council/wolverhampton","TVLICENSING.CO.UK","145.50","LAC Transitions Team","7392","Client Allowances","15/11/2016"
"Wolverhampton City Council","http://opendatacommunities.org/id/metropolitan-district-council/wolverhampton","DELICE DE FRANCE","231.07","Art Gallery Tea Room","5462","Catering","15/11/2016"
"Wolverhampton City Council","http://opendatacommunities.org/id/metropolitan-district-council/wolverhampton","ARGOS LTD","24.99","EIP Locality 4","5310","Grant Payments","14/11/2016"
"Wolverhampton City Council","http://opendatacommunities.org/id/metropolitan-district-council/wolverhampton","ARGOS LTD","105.12","European Liaison","5310","Computing - Purchase of Hardware","14/11/2016"
"Wolverhampton City Council","http://opendatacommunities.org/id/metropolitan-district-council/wolverhampton","THE POST OFFICE","220.00","European Liaison","9402","Financial Assistance In Exceptional Circ","14/11/2016"
"Wolverhampton City Council","http://opendatacommunities.org/id/metropolitan-district-council/wolverhampton","THE POST OFFICE","59.50","European Liaison","9402","Marketing \ Non-staff advertising","14/11/2016"
"Wolverhampton City Council","http://opendatacommunities.org/id/metropolitan-district-council/wolverhampton","DVLA DRIVER ONLINE","34.00","European Liaison","9399","Financial Assistance In Exceptional Circ","14/11/2016"
"Wolverhampton City Council","http://opendatacommunities.org/id/metropolitan-district-council/wolverhampton","DVLA DRIVER ONLINE","34.00","European Liaison","9399","Financial Assistance In Exceptional Circ","14/11/2016"
"Wolverhampton City Council","http://opendatacommunities.org/id/metropolitan-district-council/wolverhampton","PMC ELECTRICS LIMI","758.62","Strategic ICTS (ICT Serv Budget)","4812","Comms - Mobile Telephones","14/11/2016"
"Wolverhampton City Council","http://opendatacommunities.org/id/metropolitan-district-council/wolverhampton","B&M RETAIL LTD","8.50","LAC Transitions Team","5310","Client Allowances","14/11/2016"
"Wolverhampton City Council","http://opendatacommunities.org/id/metropolitan-district-council/wolverhampton","ALDI","23.30","LAC Transitions Team","5411","Client Allowances","14/11/2016"
"Wolverhampton City Council","http://opendatacommunities.org/id/metropolitan-district-council/wolverhampton","TFM FARM & COUNTRY SUP","172.68","Northicote Farm","5399","Equipment - Purchase","14/11/2016"
"Wolverhampton City Council","http://opendatacommunities.org/id/metropolitan-district-council/wolverhampton","SAINSBURYS","20.00","Mental Health Assessment & Care Mgmt","6011","Financial Assistance In Exceptional Circ","14/11/2016"
"Wolverhampton City Council","http://opendatacommunities.org/id/metropolitan-district-council/wolverhampton","SCREWFIX DIRECT","148.82","Technician","5211","Materials","14/11/2016"
"Wolverhampton City Council","http://opendatacommunities.org/id/metropolitan-district-council/wolverhampton","PREMIER INN","169.98","Bridges & Subways","3811","TPP - Maintenance on Principal Roads","14/11/2016"
"Wolverhampton City Council","http://opendatacommunities.org/id/metropolitan-district-council/wolverhampton","ONLINECARPETS.COUK","249.60","LAC Transitions Team","5713","Client Allowances","14/11/2016"
"Wolverhampton City Council","http://opendatacommunities.org/id/metropolitan-district-council/wolverhampton","WWW.ALLPURPOSELTD.CO.U","127.09","Central Baths","2842","Cleaning Supplies and Materials","14/11/2016"
"Wolverhampton City Council","http://opendatacommunities.org/id/metropolitan-district-council/wolverhampton","J P LENNARD LTD","68.95","Central Baths","5941","Equipment - Purchase","14/11/2016"
"Wolverhampton City Council","http://opendatacommunities.org/id/metropolitan-district-council/wolverhampton","ITUNES.COM/BILL","229.99","Communications & Marketing - General","5735","Computing - Purchase of Software","14/11/2016"
"Wolverhampton City Council","http://opendatacommunities.org/id/metropolitan-district-council/wolverhampton","ROYAL CARPETS","179.17","LAC Transitions Team","5713","Client Allowances","14/11/2016"
"Wolverhampton City Council","http://opendatacommunities.org/id/metropolitan-district-council/wolverhampton","ROYAL CARPETS","179.17","LAC Transitions Team","5713","Client Allowances","14/11/2016"
"Wolverhampton City Council","http://opendatacommunities.org/id/metropolitan-district-council/wolverhampton","PREMIER INN","372.00","CIN/CP S17 SW Unit - Area 3","3811","Public Transport","14/11/2016"
"Wolverhampton City Council","http://opendatacommunities.org/id/metropolitan-district-council/wolverhampton","ASDA SUPERSTORE","100.00","CIN/CP S17 SW Unit - Area 3","5411","Provisions (Not for resale)","14/11/2016"
"Wolverhampton City Council","http://opendatacommunities.org/id/metropolitan-district-council/wolverhampton","ASDA SUPERSTORE","100.00","CIN/CP S17 SW Unit - Area 3","5411","Provisions (Not for resale)","14/11/2016"
"Wolverhampton City Council","http://opendatacommunities.org/id/metropolitan-district-council/wolverhampton","ASDA SUPERSTORE","200.00","CIN/CP S17 SW Unit - Area 3","5411","Provisions (Not for resale)","14/11/2016"
"Wolverhampton City Council","http://opendatacommunities.org/id/metropolitan-district-council/wolverhampton","Trainline","85.68","CIN/CP S17 SW Unit - Area 3","4112","Public Transport","14/11/2016"
"Wolverhampton City Council","http://opendatacommunities.org/id/metropolitan-district-council/wolverhampton","ASDA HOME SHOPPING","98.89","Ernest Bold Court","5411","Provisions (Not for resale)","14/11/2016"
"Wolverhampton City Council","http://opendatacommunities.org/id/metropolitan-district-council/wolverhampton","AMAZON UK RETAIL AMAZO","17.43","Inclusion Support","5999","Equipment - Purchase","14/11/2016"
"Wolverhampton City Council","http://opendatacommunities.org/id/metropolitan-district-council/wolverhampton","123 REG R/T","13.98","Art Gallery","5968","Subscriptions","14/11/2016"
"Wolverhampton City Council","http://opendatacommunities.org/id/metropolitan-district-council/wolverhampton","PURE360","224.00","Civic Halls Non Direct Management A/C","7372","Marketing \ Non-staff advertising","14/11/2016"
"Wolverhampton City Council","http://opendatacommunities.org/id/metropolitan-district-council/wolverhampton","KINGFISHER MEDIA LTD","525.00","Civic Halls Non Direct Management A/C","7311","Marketing \ Non-staff advertising","14/11/2016"
"Wolverhampton City Council","http://opendatacommunities.org/id/metropolitan-district-council/wolverhampton","CIEH","179.00","Central Training","8699","Training Expenses","14/11/2016"
"Wolverhampton City Council","http://opendatacommunities.org/id/metropolitan-district-council/wolverhampton","EBUYER (UK) LTD","50.80","Macmillan Welfare Rights","5722","Stationery","14/11/2016"
"Wolverhampton City Council","http://opendatacommunities.org/id/metropolitan-district-council/wolverhampton","GRANDTHEATRE.CO.UK","32.50","Ernest Bold Court","7922","Educ Trips, Holidays, Outings, Activity","14/11/2016"
"Wolverhampton City Council","http://opendatacommunities.org/id/metropolitan-district-council/wolverhampton","SAINSBURYS 2040","23.33","Mayoral Expenses","5411","Clothing / Uniforms","14/11/2016"
"Wolverhampton City Council","http://opendatacommunities.org/id/metropolitan-district-council/wolverhampton","MARKS&SPENCER PLC SACA","5.16","Mayoral Expenses","5411","Hospitality","14/11/2016"
"Wolverhampton City Council","http://opendatacommunities.org/id/metropolitan-district-council/wolverhampton","SAINSBURYS (2340)","20.41","Mayoral Expenses","5411","Hospitality","14/11/2016"
"Wolverhampton City Council","http://opendatacommunities.org/id/metropolitan-district-council/wolverhampton","PREMIER INN","64.99","Adoption and Residence Team & Allowances","3811","Services - Supplies & Services to users","14/11/2016"
"Wolverhampton City Council","http://opendatacommunities.org/id/metropolitan-district-council/wolverhampton","Virgin Trains","32.00","Economic Development","4112","Public Transport","14/11/2016"
"Wolverhampton City Council","http://opendatacommunities.org/id/metropolitan-district-council/wolverhampton","Virgin Trains","37.55","LAC Team","4112","Public Transport","14/11/2016"
"Wolverhampton City Council","http://opendatacommunities.org/id/metropolitan-district-council/wolverhampton","Amazon UK Marketplace","23.80","Technical Support","5942","Books","14/11/2016"
"Wolverhampton City Council","http://opendatacommunities.org/id/metropolitan-district-council/wolverhampton","Amazon EU","15.76","Technical Support","5969","Equipment - Purchase","14/11/2016"
"Wolverhampton City Council","http://opendatacommunities.org/id/metropolitan-district-council/wolverhampton","FSPRG.COM INFFUSE.COM","5.05","Technical Support","5734","Computing - Purchase of Software","14/11/2016"
"Wolverhampton City Council","http://opendatacommunities.org/id/metropolitan-district-council/wolverhampton","Amazon EU","31.90","Technical Support","5969","Equipment - Purchase","14/11/2016"
"Wolverhampton City Council","http://opendatacommunities.org/id/metropolitan-district-council/wolverhampton","WEST COAST TRAINS","6.25","Education And Access","4112","Public Transport","14/11/2016"
"Wolverhampton City Council","http://opendatacommunities.org/id/metropolitan-district-council/wolverhampton","POST OFFICE COUNTER","55.75","LAC Team","9402","Financial Assistance In Exceptional Circ","14/11/2016"
"Wolverhampton City Council","http://opendatacommunities.org/id/metropolitan-district-council/wolverhampton","ASDA HOME SHOPPING","-0.20","Ernest Bold Court","5411","Provisions (Not for resale)","14/11/2016"
"Wolverhampton City Council","http://opendatacommunities.org/id/metropolitan-district-council/wolverhampton","W M MORRISON PLC","15.67","Ernest Bold Court","5411","Provisions (Not for resale)","14/11/2016"
"Wolverhampton City Council","http://opendatacommunities.org/id/metropolitan-district-council/wolverhampton","ARGOS RETAIL GROUP","66.93","CIN/CP S17 SW Unit - Area 4","5310","Equipment - Purchase","14/11/2016"
"Wolverhampton City Council","http://opendatacommunities.org/id/metropolitan-district-council/wolverhampton","TFM FARM & COUNTRY SUP","86.75","Northicote Farm","5399","Equipment - Purchase","14/11/2016"
"Wolverhampton City Council","http://opendatacommunities.org/id/metropolitan-district-council/wolverhampton","WM MORRISONS","36.67","Early Years & Universal Service","5411","Provisions (Not for resale)","11/11/2016"
"Wolverhampton City Council","http://opendatacommunities.org/id/metropolitan-district-council/wolverhampton","Amazon Prime","7.99","Strategic ICTS (ICT Serv Budget)","5968","Subscriptions","11/11/2016"
"Wolverhampton City Council","http://opendatacommunities.org/id/metropolitan-district-council/wolverhampton","REGISTRAR GENERAL'S DE","90.92","LAC Transitions Team","9399","Client Allowances","11/11/2016"
"Wolverhampton City Council","http://opendatacommunities.org/id/metropolitan-district-council/wolverhampton","REGISTRAR GENERAL'S DE","90.92","LAC Transitions Team","9399","Client Allowances","11/11/2016"
"Wolverhampton City Council","http://opendatacommunities.org/id/metropolitan-district-council/wolverhampton","AMAZON UK RETAIL AMAZO","75.20","Central Baths","5999","Equipment - Purchase","11/11/2016"
"Wolverhampton City Council","http://opendatacommunities.org/id/metropolitan-district-council/wolverhampton","Trainline","188.70","CIN/CP S17 SW Unit - Area 3","4112","Public Transport","11/11/2016"
"Wolverhampton City Council","http://opendatacommunities.org/id/metropolitan-district-council/wolverhampton","VERIFONE TAXI/PRIVATE","44.00","CIN/CP S17 SW Unit - Area 5","4121","Client Transport","11/11/2016"
"Wolverhampton City Council","http://opendatacommunities.org/id/metropolitan-district-council/wolverhampton","AMAZON UK RETAIL AMAZO","11.25","Northicote Farm","5999","Equipment - Purchase","11/11/2016"
"Wolverhampton City Council","http://opendatacommunities.org/id/metropolitan-district-council/wolverhampton","DUNELM (SOFT FURNISHIN","44.97","Civic Centre Catering","5714","Equipment - Purchase","11/11/2016"
"Wolverhampton City Council","http://opendatacommunities.org/id/metropolitan-district-council/wolverhampton","GRO HM PASSPORT OFFICE","-9.25","Head of Service - CINCP","9399","Services - Professional Fees","11/11/2016"
"Wolverhampton City Council","http://opendatacommunities.org/id/metropolitan-district-council/wolverhampton","GRO HM PASSPORT OFFICE","-9.25","Head of Service - CINCP","9399","Services - Professional Fees","11/11/2016"
"Wolverhampton City Council","http://opendatacommunities.org/id/metropolitan-district-council/wolverhampton","Virgin Trains","190.40","Adoption and Residence Team & Allowances","4112","Public Transport","11/11/2016"
"Wolverhampton City Council","http://opendatacommunities.org/id/metropolitan-district-council/wolverhampton","ITW ENVOPAK","117.48","Revenues","5085","Equipment - Purchase","11/11/2016"
"Wolverhampton City Council","http://opendatacommunities.org/id/metropolitan-district-council/wolverhampton","ARGOS RETAIL GROUP","333.32","Childrens with Disabilities Team","5310","Equipment - Purchase","11/11/2016"
"Wolverhampton City Council","http://opendatacommunities.org/id/metropolitan-district-council/wolverhampton","SAINSBURYS","200.00","Childrens with Disabilities Team","6011","Financial Assistance In Exceptional Circ","11/11/2016"
"Wolverhampton City Council","http://opendatacommunities.org/id/metropolitan-district-council/wolverhampton","HOUSE OF FRASER","95.00","Delivery & OCE Development","5311","Equipment - Purchase","11/11/2016"
"Wolverhampton City Council","http://opendatacommunities.org/id/metropolitan-district-council/wolverhampton","WWW.PRESERVATIONEQUIPM","182.70","Collections & Conservation","4225","Equipment - Purchase","11/11/2016"
"Wolverhampton City Council","http://opendatacommunities.org/id/metropolitan-district-council/wolverhampton","ARGOS LTD","27.49","CIN/CP S17 SW Unit - Area 3A","5310","Equipment - Purchase","11/11/2016"
"Wolverhampton City Council","http://opendatacommunities.org/id/metropolitan-district-council/wolverhampton","WWW.VIKING-DIRECT.CO.U","92.84","Archives","5111","Stationery","11/11/2016"
"Wolverhampton City Council","http://opendatacommunities.org/id/metropolitan-district-council/wolverhampton","WM MORRISON 024","5.61","Ernest Bold Court","5411","Provisions (Not for resale)","11/11/2016"
"Wolverhampton City Council","http://opendatacommunities.org/id/metropolitan-district-council/wolverhampton","DEBENHAMS.COM","124.38","Education And Access","5311","Equipment - Purchase","11/11/2016"
"Wolverhampton City Council","http://opendatacommunities.org/id/metropolitan-district-council/wolverhampton","POUNDLAND LTD 1463","30.00","Education And Access","5310","Equipment - Purchase","11/11/2016"
"Wolverhampton City Council","http://opendatacommunities.org/id/metropolitan-district-council/wolverhampton","Trainline","82.31","CIN/CP S17 SW Unit - Area 2","4112","Public Transport","11/11/2016"
"Wolverhampton City Council","http://opendatacommunities.org/id/metropolitan-district-council/wolverhampton","Virgin Trains","154.00","Children & Young People Support Costs","4112","Public Transport","11/11/2016"
"Wolverhampton City Council","http://opendatacommunities.org/id/metropolitan-district-council/wolverhampton","Virgin Trains","8.50","Children & Young People Support Costs","4112","Public Transport","11/11/2016"
"Wolverhampton City Council","http://opendatacommunities.org/id/metropolitan-district-council/wolverhampton","Virgin Trains","7.50","Children & Young People Support Costs","4112","Public Transport","11/11/2016"
"Wolverhampton City Council","http://opendatacommunities.org/id/metropolitan-district-council/wolverhampton","Virgin Trains","16.50","Children & Young People Support Costs","4112","Public Transport","11/11/2016"
"Wolverhampton City Council","http://opendatacommunities.org/id/metropolitan-district-council/wolverhampton","Amazon EU","65.44","Technical Support","5969","Equipment - Purchase","11/11/2016"
"Wolverhampton City Council","http://opendatacommunities.org/id/metropolitan-district-council/wolverhampton","Amazon EU","65.43","Technical Support","5969","Equipment - Purchase","11/11/2016"
"Wolverhampton City Council","http://opendatacommunities.org/id/metropolitan-district-council/wolverhampton","TASSIMO.CO.UK","39.78","Technical Support","5441","Catering","11/11/2016"
"Wolverhampton City Council","http://opendatacommunities.org/id/metropolitan-district-council/wolverhampton","Virgin Trains","176.00","Environmental Health - Pub Prot - Gen","4112","Services - Fees and Charges","11/11/2016"
"Wolverhampton City Council","http://opendatacommunities.org/id/metropolitan-district-council/wolverhampton","Virgin Trains","110.05","Members Expenses","4112","Public Transport","11/11/2016"
"Wolverhampton City Council","http://opendatacommunities.org/id/metropolitan-district-council/wolverhampton","ARGOS RETAIL GROUP","90.15","EIP Locality 4","5310","Grant Payments","10/11/2016"
"Wolverhampton City Council","http://opendatacommunities.org/id/metropolitan-district-council/wolverhampton","ARGOS RETAIL GROUP","146.94","EIP Locality 4","5310","Grant Payments","10/11/2016"
"Wolverhampton City Council","http://opendatacommunities.org/id/metropolitan-district-council/wolverhampton","AMAZON UK RETAIL AMAZO","12.94","EIP Locality 4","5999","Books","10/11/2016"
"Wolverhampton City Council","http://opendatacommunities.org/id/metropolitan-district-council/wolverhampton","CURRYS ONLINE","179.16","EIP Locality 4","5732","Grant Payments","10/11/2016"
"Wolverhampton City Council","http://opendatacommunities.org/id/metropolitan-district-council/wolverhampton","ASDA 4387","77.95","EIP Locality 4","5411","Grant Payments","10/11/2016"
"Wolverhampton City Council","http://opendatacommunities.org/id/metropolitan-district-council/wolverhampton","REGISTRARS OFFICE","10.00","European Liaison","8299","Financial Assistance In Exceptional Circ","10/11/2016"
"Wolverhampton City Council","http://opendatacommunities.org/id/metropolitan-district-council/wolverhampton","ARGOS RETAIL GROUP","130.94","LAC Transitions Team","5310","Client Allowances","10/11/2016"
"Wolverhampton City Council","http://opendatacommunities.org/id/metropolitan-district-council/wolverhampton","Amazon EU","5.10","Central Baths","5969","Equipment - Purchase","10/11/2016"
"Wolverhampton City Council","http://opendatacommunities.org/id/metropolitan-district-council/wolverhampton","Trainline","33.20","Assistant Director - Public Health","4112","Public Transport","10/11/2016"
"Wolverhampton City Council","http://opendatacommunities.org/id/metropolitan-district-council/wolverhampton","Amazon UK Marketplace","59.70","Creative Studies Delivery Area","5942","Equipment - Purchase","10/11/2016"
"Wolverhampton City Council","http://opendatacommunities.org/id/metropolitan-district-council/wolverhampton","Amazon UK Marketplace","67.90","Creative Studies Delivery Area","5942","Equipment - Purchase","10/11/2016"
"Wolverhampton City Council","http://opendatacommunities.org/id/metropolitan-district-council/wolverhampton","VWO.com","48.79","City Direct","7399","Equipment - Purchase","10/11/2016"
"Wolverhampton City Council","http://opendatacommunities.org/id/metropolitan-district-council/wolverhampton","IKEA ONLINE","63.50","Education And Access","5719","Equipment - Purchase","10/11/2016"
"Wolverhampton City Council","http://opendatacommunities.org/id/metropolitan-district-council/wolverhampton","ARGOS RETAIL GROUP","99.95","Housing Gas Safe Scheme","5310","Grant Payments","10/11/2016"
"Wolverhampton City Council","http://opendatacommunities.org/id/metropolitan-district-council/wolverhampton","TESCO STORES 5397","15.95","EIP Locality 1","5411","Financial Assistance In Exceptional Circ","10/11/2016"
"Wolverhampton City Council","http://opendatacommunities.org/id/metropolitan-district-council/wolverhampton","PO WILLENHALL RD 5497","10.00","EIP Locality 1","6011","Financial Assistance In Exceptional Circ","10/11/2016"
"Wolverhampton City Council","http://opendatacommunities.org/id/metropolitan-district-council/wolverhampton","Trainline","60.69","Pop Gallery Space","4112","Public Transport","10/11/2016"
"Wolverhampton City Council","http://opendatacommunities.org/id/metropolitan-district-council/wolverhampton","THE IMC GROUP LTD","651.00","Collections & Conservation","5065","Equipment - R & M","10/11/2016"
"Wolverhampton City Council","http://opendatacommunities.org/id/metropolitan-district-council/wolverhampton","HSBC INVOICE FINAN","673.22","Towers Outdoor Education Centre","6012","Laundry Expenses","10/11/2016"
"Wolverhampton City Council","http://opendatacommunities.org/id/metropolitan-district-council/wolverhampton","STERMAT CAR AND VAN HI","1351.42","Towers Outdoor Education Centre","5521","Hire of Vehicles","10/11/2016"
"Wolverhampton City Council","http://opendatacommunities.org/id/metropolitan-district-council/wolverhampton","WYNNSTAY ARGICULTURAL","31.57","Towers Outdoor Education Centre","5311","Equipment - Purchase","10/11/2016"
"Wolverhampton City Council","http://opendatacommunities.org/id/metropolitan-district-council/wolverhampton","DMM INTERNATIONAL LTD","1428.83","Towers Outdoor Education Centre","5999","Equipment - Purchase","10/11/2016"
"Wolverhampton City Council","http://opendatacommunities.org/id/metropolitan-district-council/wolverhampton","HN NUTTALL LTD","262.34","Towers Outdoor Education Centre","5085","Provisions (Not for resale)","10/11/2016"
"Wolverhampton City Council","http://opendatacommunities.org/id/metropolitan-district-council/wolverhampton","Wix.com","93.13","Technical Support","5817","Computing - Purchase of Software","10/11/2016"
"Wolverhampton City Council","http://opendatacommunities.org/id/metropolitan-district-council/wolverhampton","Amazon UK Marketplace","224.63","Technical Support","5942","Computing - Purchase of Hardware","10/11/2016"
"Wolverhampton City Council","http://opendatacommunities.org/id/metropolitan-district-council/wolverhampton","Trainline","200.12","Head of Service - CINCP","4112","Public Transport","10/11/2016"
"Wolverhampton City Council","http://opendatacommunities.org/id/metropolitan-district-council/wolverhampton","PAYPAL  ARGOSDIRECT","294.92","Environmental Health - Pub Prot - Gen","5331","Equipment - Purchase","10/11/2016"
"Wolverhampton City Council","http://opendatacommunities.org/id/metropolitan-district-council/wolverhampton","CARESHOP","106.02","Specialist Support Service - North","5999","Cleaning Supplies and Materials","10/11/2016"
"Wolverhampton City Council","http://opendatacommunities.org/id/metropolitan-district-council/wolverhampton","MOONFRUIT","72.00","Civic Halls Non Direct Management A/C","7372","Computing - Purchase of Software","10/11/2016"
"Wolverhampton City Council","http://opendatacommunities.org/id/metropolitan-district-council/wolverhampton","Amazon UK Marketplace","62.87","Northicote Farm","5942","Equipment - Purchase","10/11/2016"
"Wolverhampton City Council","http://opendatacommunities.org/id/metropolitan-district-council/wolverhampton","ASDA HOME SHOPPING","-0.01","Ernest Bold Court","5411","Provisions (Not for resale)","10/11/2016"
"Wolverhampton City Council","http://opendatacommunities.org/id/metropolitan-district-council/wolverhampton","ASDA HOME SHOPPING","84.56","Ernest Bold Court","5411","Provisions (Not for resale)","10/11/2016"
"Wolverhampton City Council","http://opendatacommunities.org/id/metropolitan-district-council/wolverhampton","POST OFFICE COUNTER","304.96","Rents Management","9402","Stationery","10/11/2016"
"Wolverhampton City Council","http://opendatacommunities.org/id/metropolitan-district-council/wolverhampton","AMAZON UK RETAIL AMAZO","251.94","School Improvement","5999","Equipment - Purchase","10/11/2016"
"Wolverhampton City Council","http://opendatacommunities.org/id/metropolitan-district-council/wolverhampton","Amazon EU","38.76","School Improvement","5969","Equipment - Purchase","10/11/2016"
"Wolverhampton City Council","http://opendatacommunities.org/id/metropolitan-district-council/wolverhampton","POST OFFICE COUNTER","224.00","Fostering Team & Allowances","9402","Comms - Postage","10/11/2016"
"Wolverhampton City Council","http://opendatacommunities.org/id/metropolitan-district-council/wolverhampton","E01577600000000","10.00","EIP Locality 3","6011","Financial Assistance In Exceptional Circ","10/11/2016"
"Wolverhampton City Council","http://opendatacommunities.org/id/metropolitan-district-council/wolverhampton","WWW.WESTMINSTER-BRIEFI","350.00","Corporate Procurement Unit","8244","Training Expenses","10/11/2016"
"Wolverhampton City Council","http://opendatacommunities.org/id/metropolitan-district-council/wolverhampton","Virgin Trains","64.10","Planning","4112","Public Transport","10/11/2016"
"Wolverhampton City Council","http://opendatacommunities.org/id/metropolitan-district-council/wolverhampton","ARGOS RETAIL GROUP","278.93","EIP Locality 4","5310","Grant Payments","09/11/2016"
"Wolverhampton City Council","http://opendatacommunities.org/id/metropolitan-district-council/wolverhampton","VUE ITCERTIFICATIONVUE","113.00","Strategic ICTS (ICT Serv Budget)","8299","Training Expenses","09/11/2016"
"Wolverhampton City Council","http://opendatacommunities.org/id/metropolitan-district-council/wolverhampton","Virgin Trains","107.20","LAC Team","4112","Public Transport","09/11/2016"
"Wolverhampton City Council","http://opendatacommunities.org/id/metropolitan-district-council/wolverhampton","E01510300000000","50.00","Emergency Duty Team","6011","Financial Assistance In Exceptional Circ","09/11/2016"
"Wolverhampton City Council","http://opendatacommunities.org/id/metropolitan-district-council/wolverhampton","ARGOS RETAIL GROUP","29.97","The Maltings","5310","Equipment - Purchase","09/11/2016"
"Wolverhampton City Council","http://opendatacommunities.org/id/metropolitan-district-council/wolverhampton","ROYAL CARPETS","275.00","LAC Transitions Team","5713","Client Allowances","09/11/2016"
"Wolverhampton City Council","http://opendatacommunities.org/id/metropolitan-district-council/wolverhampton","ROYAL CARPETS","275.00","LAC Transitions Team","5713","Client Allowances","09/11/2016"
"Wolverhampton City Council","http://opendatacommunities.org/id/metropolitan-district-council/wolverhampton","WOLVERHAMPTON CC","4.00","Headstart Wolverhampton","7523","Parking Fees","09/11/2016"
"Wolverhampton City Council","http://opendatacommunities.org/id/metropolitan-district-council/wolverhampton","WM MORRISON 024","14.00","Ernest Bold Court","5411","Laundry Expenses","09/11/2016"
"Wolverhampton City Council","http://opendatacommunities.org/id/metropolitan-district-council/wolverhampton","Trainline","43.96","Safeguarding Admin Resource","4112","Public Transport","09/11/2016"
"Wolverhampton City Council","http://opendatacommunities.org/id/metropolitan-district-council/wolverhampton","THE MOUNT HOTEL","-14.75","Parent / Partnership Service","7011","Services - Supplies & Services to users","09/11/2016"
"Wolverhampton City Council","http://opendatacommunities.org/id/metropolitan-district-council/wolverhampton","NATWEST BANK","100.00","Democratic Support","6011","Public Transport","09/11/2016"
"Wolverhampton City Council","http://opendatacommunities.org/id/metropolitan-district-council/wolverhampton","CARVER/WOLVERHAMPTON/L","17.25","Culwell Street Depot","5211","R&M - Departmental planned (external)","09/11/2016"
"Wolverhampton City Council","http://opendatacommunities.org/id/metropolitan-district-council/wolverhampton","Virgin Trains","49.90","Housing Regeneration - Strategy & Dev","4112","Public Transport","09/11/2016"
"Wolverhampton City Council","http://opendatacommunities.org/id/metropolitan-district-council/wolverhampton","ARGOS RETAIL GROUP","134.24","EIP Locality 1","5310","Financial Assistance In Exceptional Circ","09/11/2016"
"Wolverhampton City Council","http://opendatacommunities.org/id/metropolitan-district-council/wolverhampton","ARGOS RETAIL GROUP","139.96","EIP Locality 2","5310","Equipment - Purchase","09/11/2016"
"Wolverhampton City Council","http://opendatacommunities.org/id/metropolitan-district-council/wolverhampton","LOYD WOMBOURNE","90.00","EIP Locality 2","6011","Financial Assistance In Exceptional Circ","09/11/2016"
"Wolverhampton City Council","http://opendatacommunities.org/id/metropolitan-district-council/wolverhampton","HUGHES","163.99","LAC Transitions Team","5732","Equipment - Purchase","09/11/2016"
"Wolverhampton City Council","http://opendatacommunities.org/id/metropolitan-district-council/wolverhampton","TESCO STORES 5194","82.29","Towers Outdoor Education Centre","5411","Provisions (Not for resale)","09/11/2016"
"Wolverhampton City Council","http://opendatacommunities.org/id/metropolitan-district-council/wolverhampton","STERMAT CAR AND VAN HI","1066.25","Towers Outdoor Education Centre","5521","Hire of Vehicles","09/11/2016"
"Wolverhampton City Council","http://opendatacommunities.org/id/metropolitan-district-council/wolverhampton","FUEL CARD SERVICES LTD","392.08","Towers Outdoor Education Centre","7399","Petrol","09/11/2016"
"Wolverhampton City Council","http://opendatacommunities.org/id/metropolitan-district-council/wolverhampton","THOMAS FREDERICK & CO","542.90","Towers Outdoor Education Centre","5714","Equipment - Purchase","09/11/2016"
"Wolverhampton City Council","http://opendatacommunities.org/id/metropolitan-district-council/wolverhampton","HARLECH FOODSERVICE LT","186.50","Towers Outdoor Education Centre","5422","Catering","09/11/2016"
"Wolverhampton City Council","http://opendatacommunities.org/id/metropolitan-district-council/wolverhampton","CHEMSOL CYMRU LTD","387.20","Towers Outdoor Education Centre","5199","Fixtures and Fittings - Purchases","09/11/2016"
"Wolverhampton City Council","http://opendatacommunities.org/id/metropolitan-district-council/wolverhampton","BLAS AR FWYD CYF","135.64","Towers Outdoor Education Centre","5812","Provisions (Not for resale)","09/11/2016"
"Wolverhampton City Council","http://opendatacommunities.org/id/metropolitan-district-council/wolverhampton","C L JONES LIMITED","107.14","Towers Outdoor Education Centre","5211","Fixtures and Fittings - Purchases","09/11/2016"
"Wolverhampton City Council","http://opendatacommunities.org/id/metropolitan-district-council/wolverhampton","Amazon UK Marketplace","36.56","Towers Outdoor Education Centre","5942","Books","09/11/2016"
"Wolverhampton City Council","http://opendatacommunities.org/id/metropolitan-district-council/wolverhampton","ARGOS LTD","41.94","Public Conveniences","5310","Materials","09/11/2016"
"Wolverhampton City Council","http://opendatacommunities.org/id/metropolitan-district-council/wolverhampton","AMAZON UK RETAIL AMAZO","31.90","Technical Support","5999","Equipment - Purchase","09/11/2016"
"Wolverhampton City Council","http://opendatacommunities.org/id/metropolitan-district-council/wolverhampton","Amazon UK Marketplace","16.19","Technical Support","5942","Computing - Purchase of Hardware","09/11/2016"
"Wolverhampton City Council","http://opendatacommunities.org/id/metropolitan-district-council/wolverhampton","Amazon UK Marketplace","59.98","Technical Support","5942","Computing - Purchase of Hardware","09/11/2016"
"Wolverhampton City Council","http://opendatacommunities.org/id/metropolitan-district-council/wolverhampton","Amazon UK Marketplace","101.85","Technical Support","5942","Computing - Purchase of Hardware","09/11/2016"
"Wolverhampton City Council","http://opendatacommunities.org/id/metropolitan-district-council/wolverhampton","Amazon UK Marketplace","45.00","Technical Support","5942","Computing - Purchase of Hardware","09/11/2016"
"Wolverhampton City Council","http://opendatacommunities.org/id/metropolitan-district-council/wolverhampton","WEST MID TRAVEL","829.10","Travel Scratch Cards & Rail Warrants","4131","Public Transport","09/11/2016"
"Wolverhampton City Council","http://opendatacommunities.org/id/metropolitan-district-council/wolverhampton","SEVERN TRENT WATER","17.35","No Recourse to Public Funds - CIN/CP","4900","Water Charges","09/11/2016"
"Wolverhampton City Council","http://opendatacommunities.org/id/metropolitan-district-council/wolverhampton","Trainline","177.53","AES Staff Development","4112","Public Transport","09/11/2016"
"Wolverhampton City Council","http://opendatacommunities.org/id/metropolitan-district-council/wolverhampton","DIGITALID.CO.UK","646.95","Priory Green","5943","Stationery","09/11/2016"
"Wolverhampton City Council","http://opendatacommunities.org/id/metropolitan-district-council/wolverhampton","WWW.JIB.ORG.UK","40.00","Property Services - Building Maintenance","8699","Subscriptions","09/11/2016"
"Wolverhampton City Council","http://opendatacommunities.org/id/metropolitan-district-council/wolverhampton","Cross Country Trains","33.00","School Improvement","4112","Public Transport","09/11/2016"
"Wolverhampton City Council","http://opendatacommunities.org/id/metropolitan-district-council/wolverhampton","E.ON ENERGY SOLUTIONS","200.00","CIN/CP S17 SW Unit - Area 5","4900","Electricity","09/11/2016"
"Wolverhampton City Council","http://opendatacommunities.org/id/metropolitan-district-council/wolverhampton","CUMMINGS BROTHERS LOCK","20.00","Culwell Street Depot","7399","Equipment - Purchase","09/11/2016"
"Wolverhampton City Council","http://opendatacommunities.org/id/metropolitan-district-council/wolverhampton","Virgin Trains","45.80","Revenues","4112","Public Transport","09/11/2016"
"Wolverhampton City Council","http://opendatacommunities.org/id/metropolitan-district-council/wolverhampton","TFM FARM & COUNTRY SUP","134.92","Northicote Farm","5399","Equipment - Purchase","09/11/2016"
"Wolverhampton City Council","http://opendatacommunities.org/id/metropolitan-district-council/wolverhampton","SAINSBURYS (2340)","57.12","Childrens with Disabilities Team","5411","Comms - Postage","09/11/2016"
"Wolverhampton City Council","http://opendatacommunities.org/id/metropolitan-district-council/wolverhampton","LINCAT LTD","41.25","Physical & Sensory Disabilities Mgmt","5399","Equipment - Purchase","09/11/2016"
"Wolverhampton City Council","http://opendatacommunities.org/id/metropolitan-district-council/wolverhampton","WCC INTERNET","272.70","Towers Outdoor Education Centre","9399","Marketing \ Non-staff advertising","09/11/2016"
"Wolverhampton City Council","http://opendatacommunities.org/id/metropolitan-district-council/wolverhampton","Amazon UK Marketplace","29.16","Headstart Phase 3","5942","Equipment - Purchase","08/11/2016"
"Wolverhampton City Council","http://opendatacommunities.org/id/metropolitan-district-council/wolverhampton","THE MOUNT HOTEL","53.10","Parent / Partnership Service","7011","Services - Supplies & Services to users","08/11/2016"
"Wolverhampton City Council","http://opendatacommunities.org/id/metropolitan-district-council/wolverhampton","ROYAL CARPETS","316.67","LAC Transitions Team","5713","Client Allowances","08/11/2016"
"Wolverhampton City Council","http://opendatacommunities.org/id/metropolitan-district-council/wolverhampton","ROYAL CARPETS","266.67","LAC Transitions Team","5713","Client Allowances","08/11/2016"
"Wolverhampton City Council","http://opendatacommunities.org/id/metropolitan-district-council/wolverhampton","Amazon EU","779.10","Technical Support","5969","Equipment - Purchase","08/11/2016"
"Wolverhampton City Council","http://opendatacommunities.org/id/metropolitan-district-council/wolverhampton","Amazon UK Marketplace","254.25","Technical Support","5942","Computing - Purchase of Hardware","08/11/2016"
"Wolverhampton City Council","http://opendatacommunities.org/id/metropolitan-district-council/wolverhampton","GOLD SUPERSTORE","6.17","Specialist Support Service - North","5251","Equipment - R & M","08/11/2016"
"Wolverhampton City Council","http://opendatacommunities.org/id/metropolitan-district-council/wolverhampton","POST OFFICE COUNTER","111.50","LAC Team","9402","Financial Assistance In Exceptional Circ","08/11/2016"
"Wolverhampton City Council","http://opendatacommunities.org/id/metropolitan-district-council/wolverhampton","WWW.ET-FOUNDATION.","200.00","AES Staff Development","8220","Training Expenses","08/11/2016"
"Wolverhampton City Council","http://opendatacommunities.org/id/metropolitan-district-council/wolverhampton","CT WOLVERHAMPTON","107.50","CIN/CP S17 SW Unit - Area 7","8398","Services - Supplies & Services to users","08/11/2016"
"Wolverhampton City Council","http://opendatacommunities.org/id/metropolitan-district-council/wolverhampton","GRO HM PASSPORT OFFICE","-9.25","Head of Service - CINCP","9399","Services - Professional Fees","08/11/2016"
"Wolverhampton City Council","http://opendatacommunities.org/id/metropolitan-district-council/wolverhampton","G & M HALE (SUNDRIES)","19.80","Creative Studies Delivery Area","5992","Materials for resale","08/11/2016"
"Wolverhampton City Council","http://opendatacommunities.org/id/metropolitan-district-council/wolverhampton","G & M HALE (SUNDRIES)","51.75","Discretionary Fund","5992","Materials","08/11/2016"
"Wolverhampton City Council","http://opendatacommunities.org/id/metropolitan-district-council/wolverhampton","G & M HALE LTD","50.60","Creative Studies Delivery Area","5992","Materials","08/11/2016"
"Wolverhampton City Council","http://opendatacommunities.org/id/metropolitan-district-council/wolverhampton","G & M HALE LTD","35.25","Creative Studies Delivery Area","5992","Materials for resale","08/11/2016"
"Wolverhampton City Council","http://opendatacommunities.org/id/metropolitan-district-council/wolverhampton","G & M HALE LTD","30.00","Discretionary Fund","5992","Equipment - Purchase","08/11/2016"
"Wolverhampton City Council","http://opendatacommunities.org/id/metropolitan-district-council/wolverhampton","NEXT-0637","18.33","Mayoral Expenses","5651","Clothing / Uniforms","08/11/2016"
"Wolverhampton City Council","http://opendatacommunities.org/id/metropolitan-district-council/wolverhampton","NEXT WOLVERHAMPTON 056","33.33","Mayoral Expenses","5651","Clothing / Uniforms","08/11/2016"
"Wolverhampton City Council","http://opendatacommunities.org/id/metropolitan-district-council/wolverhampton","CUPSDIRECTCOUK","61.00","Mayoral Expenses","5999","Hospitality","08/11/2016"
"Wolverhampton City Council","http://opendatacommunities.org/id/metropolitan-district-council/wolverhampton","A F BLAKEMORE & SON LT","368.32","Mayoral Expenses","5411","Hospitality","08/11/2016"
"Wolverhampton City Council","http://opendatacommunities.org/id/metropolitan-district-council/wolverhampton","WWW.ABBEYACCESS.CO","61.65","Parks - East Area Management","5251","Equipment - Purchase","08/11/2016"
"Wolverhampton City Council","http://opendatacommunities.org/id/metropolitan-district-council/wolverhampton","Amazon UK Marketplace","48.13","Parks - East Area Management","5942","Equipment - Purchase","08/11/2016"
"Wolverhampton City Council","http://opendatacommunities.org/id/metropolitan-district-council/wolverhampton","WWW.MAPLIN.CO.UK","56.62","Technician","5732","Equipment - Purchase","08/11/2016"
"Wolverhampton City Council","http://opendatacommunities.org/id/metropolitan-district-council/wolverhampton","GRADUATIONATTIRELTD","125.00","Members Expenses","5641","Equipment - Purchase","08/11/2016"
"Wolverhampton City Council","http://opendatacommunities.org/id/metropolitan-district-council/wolverhampton","VUE ITCERTIFICATIONVUE","113.00","Strategic ICTS (ICT Serv Budget)","8299","Training Expenses","08/11/2016"
"Wolverhampton City Council","http://opendatacommunities.org/id/metropolitan-district-council/wolverhampton","Amazon EU","10.83","Strategic ICTS (ICT Serv Budget)","5969","Equipment - Purchase","08/11/2016"
"Wolverhampton City Council","http://opendatacommunities.org/id/metropolitan-district-council/wolverhampton","SHANGHAIRUIMINGZHIYEYO","2044.23","International Trade","7011","Grant Payments","08/11/2016"
"Wolverhampton City Council","http://opendatacommunities.org/id/metropolitan-district-council/wolverhampton","W M MORRISONS.COM","129.21","Discretionary Fund","5411","Materials","08/11/2016"
"Wolverhampton City Council","http://opendatacommunities.org/id/metropolitan-district-council/wolverhampton","LOYD WEDNESFIELD WOLVE","150.00","EIP Locality 8","6011","Equipment - Purchase","08/11/2016"
"Wolverhampton City Council","http://opendatacommunities.org/id/metropolitan-district-council/wolverhampton","WORLDSTORES LTD","233.32","LAC Transitions Team","5719","Client Allowances","08/11/2016"
"Wolverhampton City Council","http://opendatacommunities.org/id/metropolitan-district-council/wolverhampton","WOLVERHAMPTON CC","4.00","Headstart Wolverhampton","7523","Parking Fees","08/11/2016"
"Wolverhampton City Council","http://opendatacommunities.org/id/metropolitan-district-council/wolverhampton","ARGOS RETAIL GROUP","-17.49","EIP Locality 4","5310","Grant Payments","07/11/2016"
"Wolverhampton City Council","http://opendatacommunities.org/id/metropolitan-district-council/wolverhampton","AMAZON UK RETAIL AMAZO","30.07","EIP Locality 4","5999","Books","07/11/2016"
"Wolverhampton City Council","http://opendatacommunities.org/id/metropolitan-district-council/wolverhampton","VUE ITCERTIFICATIONVUE","113.00","Strategic ICTS (ICT Serv Budget)","8299","Training Expenses","07/11/2016"
"Wolverhampton City Council","http://opendatacommunities.org/id/metropolitan-district-council/wolverhampton","Amazon UK Marketplace","26.98","Strategic ICTS (ICT Serv Budget)","5942","Computing - Purchase of Hardware","07/11/2016"
"Wolverhampton City Council","http://opendatacommunities.org/id/metropolitan-district-council/wolverhampton","EB  A NEW POLITICS FOR","50.00","Public Health Commissioning","7399","Conference Expenses","07/11/2016"
"Wolverhampton City Council","http://opendatacommunities.org/id/metropolitan-district-council/wolverhampton","Trainline","94.86","Public Health - Healthier Places Team","4112","Public Transport","07/11/2016"
"Wolverhampton City Council","http://opendatacommunities.org/id/metropolitan-district-council/wolverhampton","Virgin Trains","290.00","LAC Team","4112","Public Transport","07/11/2016"
"Wolverhampton City Council","http://opendatacommunities.org/id/metropolitan-district-council/wolverhampton","ASDA HOME SHOPPING","-5.20","Upper Pendeford Farm Childrens Home","5411","Provisions (Not for resale)","07/11/2016"
"Wolverhampton City Council","http://opendatacommunities.org/id/metropolitan-district-council/wolverhampton","JURYS MANCHESTER I","198.00","Older People Assessment & Care Mgmt","7011","Services - Supplies & Services to users","07/11/2016"
"Wolverhampton City Council","http://opendatacommunities.org/id/metropolitan-district-council/wolverhampton","EE & T-MOBILE","375.50","Civic Halls Non Direct Management A/C","4814","Comms - Telephone Call charges","07/11/2016"
"Wolverhampton City Council","http://opendatacommunities.org/id/metropolitan-district-council/wolverhampton","BT PAY BY PHONE","310.68","Bilston Museum","4814","Comms - Telephone Call charges","07/11/2016"
"Wolverhampton City Council","http://opendatacommunities.org/id/metropolitan-district-council/wolverhampton","PAYPAL  THEROTA","498.15","Civic Halls Non Direct Management A/C","5735","Marketing \ Non-staff advertising","07/11/2016"
"Wolverhampton City Council","http://opendatacommunities.org/id/metropolitan-district-council/wolverhampton","VUE NCS CITB HS&E TEST","19.50","Head of Projects and Works","8299","Training Expenses","07/11/2016"
"Wolverhampton City Council","http://opendatacommunities.org/id/metropolitan-district-council/wolverhampton","AMAZON UK RETAIL AMAZO","65.00","Welfare Rights","5999","Books","07/11/2016"
"Wolverhampton City Council","http://opendatacommunities.org/id/metropolitan-district-council/wolverhampton","WWW.SEVERNTRENTSEARCHE","290.00","Disposal Costs","4900","Services - Professional Fees","07/11/2016"
"Wolverhampton City Council","http://opendatacommunities.org/id/metropolitan-district-council/wolverhampton","WWW.SEVERNTRENTSEARCHE","290.00","Disposal Costs","4900","Services - Professional Fees","07/11/2016"
"Wolverhampton City Council","http://opendatacommunities.org/id/metropolitan-district-council/wolverhampton","WP-CENTRAL TAXIS L","22.00","Legal Services","4121","Public Transport","07/11/2016"
"Wolverhampton City Council","http://opendatacommunities.org/id/metropolitan-district-council/wolverhampton","MARKS&SPENCER SACAT","107.50","Mayoral Expenses","5411","Clothing / Uniforms","07/11/2016"
"Wolverhampton City Council","http://opendatacommunities.org/id/metropolitan-district-council/wolverhampton","DEBENHAMS","64.17","Mayoral Expenses","5311","Clothing / Uniforms","07/11/2016"
"Wolverhampton City Council","http://opendatacommunities.org/id/metropolitan-district-council/wolverhampton","SURVEY EXPRESS","185.00","Highway & Land Drainage","5085","Equipment - Purchase","07/11/2016"
"Wolverhampton City Council","http://opendatacommunities.org/id/metropolitan-district-council/wolverhampton","NCP LIMITED","43.58","Service Director Older People","7523","Car Allowances","07/11/2016"
"Wolverhampton City Council","http://opendatacommunities.org/id/metropolitan-district-council/wolverhampton","Virgin Trains","7.50","Children & Young People Support Costs","4112","Public Transport","07/11/2016"
"Wolverhampton City Council","http://opendatacommunities.org/id/metropolitan-district-council/wolverhampton","WIX.COM","93.13","Technical Support","5817","Computing - Purchase of Software","07/11/2016"
"Wolverhampton City Council","http://opendatacommunities.org/id/metropolitan-district-council/wolverhampton","Amazon UK Marketplace","45.98","Technical Support","5942","Computing - Purchase of Hardware","07/11/2016"
"Wolverhampton City Council","http://opendatacommunities.org/id/metropolitan-district-council/wolverhampton","Amazon UK Marketplace","128.97","Technical Support","5942","Computing - Purchase of Hardware","07/11/2016"
"Wolverhampton City Council","http://opendatacommunities.org/id/metropolitan-district-council/wolverhampton","WIX.COM","186.26","Technical Support","5968","Subscriptions","07/11/2016"
"Wolverhampton City Council","http://opendatacommunities.org/id/metropolitan-district-council/wolverhampton","RAPID ELECTRONICS","122.00","Technical Support","5732","Equipment - Purchase","07/11/2016"
"Wolverhampton City Council","http://opendatacommunities.org/id/metropolitan-district-council/wolverhampton","SQUARESPACE INC.","159.48","Learning Technologies","7372","Computing - Purchase of Software","07/11/2016"
"Wolverhampton City Council","http://opendatacommunities.org/id/metropolitan-district-council/wolverhampton","Virgintrains.co.uk","-171.40","LAC Team","4112","Public Transport","07/11/2016"
"Wolverhampton City Council","http://opendatacommunities.org/id/metropolitan-district-council/wolverhampton","ARGOS LTD","19.99","CIN/CP S17 SW Unit - Area 6","5310","Equipment - Purchase","07/11/2016"
"Wolverhampton City Council","http://opendatacommunities.org/id/metropolitan-district-council/wolverhampton","ARGOS LTD","248.93","CIN/CP S17 SW Unit - Area 6","5310","Equipment - Purchase","07/11/2016"
"Wolverhampton City Council","http://opendatacommunities.org/id/metropolitan-district-council/wolverhampton","WWW.ICO.GOV.UK","35.00","Members Expenses","9399","Subscriptions","07/11/2016"
"Wolverhampton City Council","http://opendatacommunities.org/id/metropolitan-district-council/wolverhampton","ASDA HOME SHOPPING","244.64","Upper Pendeford Farm Childrens Home","5411","Provisions (Not for resale)","07/11/2016"
"Wolverhampton City Council","http://opendatacommunities.org/id/metropolitan-district-council/wolverhampton","RS COMPONENTS","36.78","Central Costs","5065","Equipment - R & M","07/11/2016"
"Wolverhampton City Council","http://opendatacommunities.org/id/metropolitan-district-council/wolverhampton","WM MORRISON 024","79.89","Ernest Bold Court","5411","Provisions (Not for resale)","07/11/2016"
"Wolverhampton City Council","http://opendatacommunities.org/id/metropolitan-district-council/wolverhampton","Amazon EU","24.99","Headstart Wolverhampton","5969","Equipment - Purchase","07/11/2016"
"Wolverhampton City Council","http://opendatacommunities.org/id/metropolitan-district-council/wolverhampton","WWW.MAPLIN.CO.UK","108.93","Headstart Wolverhampton","5732","Equipment - Purchase","07/11/2016"
"Wolverhampton City Council","http://opendatacommunities.org/id/metropolitan-district-council/wolverhampton","IKEA LIMITED","8.67","Jane & Louise Wilson","5712","Equipment - Purchase","07/11/2016"
"Wolverhampton City Council","http://opendatacommunities.org/id/metropolitan-district-council/wolverhampton","HOBBY CRAFT LTD","39.17","Jane & Louise Wilson","5970","Materials","07/11/2016"
"Wolverhampton City Council","http://opendatacommunities.org/id/metropolitan-district-council/wolverhampton","YOUNG`S SHOE REPAIRS L","5.00","Wolverhampton Indoor and Open Market","7251","Fixtures and Fittings - R&M","07/11/2016"
"Wolverhampton City Council","http://opendatacommunities.org/id/metropolitan-district-council/wolverhampton","CUMMINGS BROTHERS LOCK","5.42","Statutory Services (10RM)","7399","R&M - Departmental planned (external)","07/11/2016"
"Wolverhampton City Council","http://opendatacommunities.org/id/metropolitan-district-council/wolverhampton","BOOKWHEN","9.00","Craftplay","7372","Computing - Purchase of Software","07/11/2016"
"Wolverhampton City Council","http://opendatacommunities.org/id/metropolitan-district-council/wolverhampton","NCP LIMITED","43.58","Strategic Director People","7523","Car Allowances","07/11/2016"
"Wolverhampton City Council","http://opendatacommunities.org/id/metropolitan-district-council/wolverhampton","NCP LIMITED","43.58","Children & Young People Support Costs","7523","Car Allowances","07/11/2016"
"Wolverhampton City Council","http://opendatacommunities.org/id/metropolitan-district-council/wolverhampton","RAMADA OLDBURY","420.75","Adoption and Residence Team & Allowances","7011","Services - Supplies & Services to users","07/11/2016"
"Wolverhampton City Council","http://opendatacommunities.org/id/metropolitan-district-council/wolverhampton","ARGOS RETAIL GROUP","198.94","EIP Locality 6","5310","Equipment - Purchase","07/11/2016"
"Wolverhampton City Council","http://opendatacommunities.org/id/metropolitan-district-council/wolverhampton","HOMEBASE LTD","403.43","SEN Early Years Team","5211","Equipment - Purchase","04/11/2016"
"Wolverhampton City Council","http://opendatacommunities.org/id/metropolitan-district-council/wolverhampton","Amazon UK Marketplace","12.95","SEN Early Years Team","5942","Equipment - Purchase","04/11/2016"
"Wolverhampton City Council","http://opendatacommunities.org/id/metropolitan-district-council/wolverhampton","ARGOS RETAIL GROUP","19.86","CIN/CP S17 SW Unit - Area 4","5310","Equipment - Purchase","04/11/2016"
"Wolverhampton City Council","http://opendatacommunities.org/id/metropolitan-district-council/wolverhampton","WICKES","19.24","Northicote Farm","5211","Materials","04/11/2016"
"Wolverhampton City Council","http://opendatacommunities.org/id/metropolitan-district-council/wolverhampton","HMCOURTS-SERVICE.G","20.00","Mental Health Assessment & Care Mgmt","9222","Services - Fees and Charges","04/11/2016"
"Wolverhampton City Council","http://opendatacommunities.org/id/metropolitan-district-council/wolverhampton","SAINSBURYS SACAT 2040","3.20","Duke Street Bungalows","5411","Provisions (Not for resale)","04/11/2016"
"Wolverhampton City Council","http://opendatacommunities.org/id/metropolitan-district-council/wolverhampton","CURRYS ONLINE","139.99","EIP Locality 6","5732","Equipment - Purchase","04/11/2016"
"Wolverhampton City Council","http://opendatacommunities.org/id/metropolitan-district-council/wolverhampton","LOYD MORR WILLENHALL","250.00","CIN/CP S17 SW Unit - Area 6","6011","Financial Assistance In Exceptional Circ","04/11/2016"
"Wolverhampton City Council","http://opendatacommunities.org/id/metropolitan-district-council/wolverhampton","AMAZON UK RETAIL AMAZO","1067.99","Communications & Marketing - General","5999","Equipment - Purchase","04/11/2016"
"Wolverhampton City Council","http://opendatacommunities.org/id/metropolitan-district-council/wolverhampton","Amazon UK Marketplace","141.09","Communications & Marketing - General","5942","Equipment - Purchase","04/11/2016"
"Wolverhampton City Council","http://opendatacommunities.org/id/metropolitan-district-council/wolverhampton","AMAZON UK RETAIL AMAZO","137.25","EIP Locality 7","5999","Equipment - Purchase","04/11/2016"
"Wolverhampton City Council","http://opendatacommunities.org/id/metropolitan-district-council/wolverhampton","Amazon UK Marketplace","32.45","EIP Locality 7","5942","Equipment - Purchase","04/11/2016"
"Wolverhampton City Council","http://opendatacommunities.org/id/metropolitan-district-council/wolverhampton","WWW.TOOLSTATION.COM","112.43","Central Costs","5251","Equipment - Purchase","04/11/2016"
"Wolverhampton City Council","http://opendatacommunities.org/id/metropolitan-district-council/wolverhampton","TVLICENSING.CO.UK","145.50","LAC Transitions Team","7392","Client Allowances","04/11/2016"
"Wolverhampton City Council","http://opendatacommunities.org/id/metropolitan-district-council/wolverhampton","NPOWER","76.68","CIN/CP S17 SW Unit - Area 3A","4900","Electricity","04/11/2016"
"Wolverhampton City Council","http://opendatacommunities.org/id/metropolitan-district-council/wolverhampton","TVLICENSING.CO.UK","145.50","LAC Transitions Team","7392","Client Allowances","04/11/2016"
"Wolverhampton City Council","http://opendatacommunities.org/id/metropolitan-district-council/wolverhampton","WOLVERHAMPTON CC","6.50","Headstart","7523","Parking Fees","04/11/2016"
"Wolverhampton City Council","http://opendatacommunities.org/id/metropolitan-district-council/wolverhampton","TRELLO","4.19","City Direct","5045","Computing - Purchase of Hardware","04/11/2016"
"Wolverhampton City Council","http://opendatacommunities.org/id/metropolitan-district-council/wolverhampton","IPSEA","29.00","Parent / Partnership Service","5734","Materials","04/11/2016"
"Wolverhampton City Council","http://opendatacommunities.org/id/metropolitan-district-council/wolverhampton","Amazon UK Marketplace","2.35","Parent / Partnership Service","5942","Books","04/11/2016"
"Wolverhampton City Council","http://opendatacommunities.org/id/metropolitan-district-council/wolverhampton","CARVER/WOLVERHAMPTON/L","24.78","Hickman Avenue Depot","5211","R&M - Departmental planned (external)","04/11/2016"
"Wolverhampton City Council","http://opendatacommunities.org/id/metropolitan-district-council/wolverhampton","THE POST OFFICE","440.00","Employment Programmes","9402","Training Expenses","04/11/2016"
"Wolverhampton City Council","http://opendatacommunities.org/id/metropolitan-district-council/wolverhampton","RICHERSOUNDS.COM","378.32","Art Gallery","5732","Equipment - Purchase","04/11/2016"
"Wolverhampton City Council","http://opendatacommunities.org/id/metropolitan-district-council/wolverhampton","NOTEMACHINE","200.00","CIN/CP S17 SW Unit - Area 6","6011","Financial Assistance In Exceptional Circ","04/11/2016"
"Wolverhampton City Council","http://opendatacommunities.org/id/metropolitan-district-council/wolverhampton","JURYS MANCHESTER I","297.00","Older People Assessment & Care Mgmt","7011","Services - Supplies & Services to users","04/11/2016"
"Wolverhampton City Council","http://opendatacommunities.org/id/metropolitan-district-council/wolverhampton","JURYS MANCHESTER I","297.00","Older People Assessment & Care Mgmt","7011","Services - Supplies & Services to users","04/11/2016"
"Wolverhampton City Council","http://opendatacommunities.org/id/metropolitan-district-council/wolverhampton","JURYS MANCHESTER I","297.00","Older People Assessment & Care Mgmt","7011","Services - Supplies & Services to users","04/11/2016"
"Wolverhampton City Council","http://opendatacommunities.org/id/metropolitan-district-council/wolverhampton","JURYS MANCHESTER I","297.00","Older People Assessment & Care Mgmt","7011","Services - Supplies & Services to users","04/11/2016"
"Wolverhampton City Council","http://opendatacommunities.org/id/metropolitan-district-council/wolverhampton","JURYS MANCHESTER I","297.00","Older People Assessment & Care Mgmt","7011","Services - Supplies & Services to users","04/11/2016"
"Wolverhampton City Council","http://opendatacommunities.org/id/metropolitan-district-council/wolverhampton","JURYS MANCHESTER I","327.00","Older People Assessment & Care Mgmt","7011","Services - Supplies & Services to users","04/11/2016"
"Wolverhampton City Council","http://opendatacommunities.org/id/metropolitan-district-council/wolverhampton","PAYPAL  SAFETYSUPPL","35.55","Environmental Health - Pub Prot - Gen","5311","Equipment - Purchase","04/11/2016"
"Wolverhampton City Council","http://opendatacommunities.org/id/metropolitan-district-council/wolverhampton","NETWORK WEST MIDLANDS","90.75","CIN/CP S17 SW Unit - Area 5","9399","Public Transport","04/11/2016"
"Wolverhampton City Council","http://opendatacommunities.org/id/metropolitan-district-council/wolverhampton","UK AUTOMOTIVE PRODTS L","170.09","Catering Overhead Account","5533","Equipment - Purchase","04/11/2016"
"Wolverhampton City Council","http://opendatacommunities.org/id/metropolitan-district-council/wolverhampton","ATLASSIAN","199.34","Civic Halls Non Direct Management A/C","5734","Computing - Purchase of Software","04/11/2016"
"Wolverhampton City Council","http://opendatacommunities.org/id/metropolitan-district-council/wolverhampton","VUE NCS CITB HS&E TEST","19.50","Head of Projects and Works","8299","Training Expenses","04/11/2016"
"Wolverhampton City Council","http://opendatacommunities.org/id/metropolitan-district-council/wolverhampton","PAYPAL  LEGALFUTURE","175.00","Central Training","8699","Training Expenses","04/11/2016"
"Wolverhampton City Council","http://opendatacommunities.org/id/metropolitan-district-council/wolverhampton","THE COAL AUTHORITY","180.00","Disposal Costs","9399","Services - Professional Fees","04/11/2016"
"Wolverhampton City Council","http://opendatacommunities.org/id/metropolitan-district-council/wolverhampton","WEST MIDLANDS TRAV","60.50","European Liaison","4131","Client Transport","04/11/2016"
"Wolverhampton City Council","http://opendatacommunities.org/id/metropolitan-district-council/wolverhampton","THE POST OFFICE","220.00","European Liaison","9402","Financial Assistance In Exceptional Circ","04/11/2016"
"Wolverhampton City Council","http://opendatacommunities.org/id/metropolitan-district-council/wolverhampton","Amazon EU","33.58","Strategic ICTS (ICT Serv Budget)","5969","Equipment - Purchase","04/11/2016"
"Wolverhampton City Council","http://opendatacommunities.org/id/metropolitan-district-council/wolverhampton","ROYAL CARPETS","130.00","LAC Transitions Team","5713","Client Allowances","04/11/2016"
"Wolverhampton City Council","http://opendatacommunities.org/id/metropolitan-district-council/wolverhampton","PAYPAL  KIDPREMIERS","115.00","EIP Locality 7","5942","Equipment - Purchase","03/11/2016"
"Wolverhampton City Council","http://opendatacommunities.org/id/metropolitan-district-council/wolverhampton","WWW.CAPT.ORG.UK","69.00","EIP Locality 7","8398","Equipment - Purchase","03/11/2016"
"Wolverhampton City Council","http://opendatacommunities.org/id/metropolitan-district-council/wolverhampton","ALEXANDRA WEBSITE","76.74","Environmental Health - Pub Prot - Gen","5137","Equipment - Purchase","03/11/2016"
"Wolverhampton City Council","http://opendatacommunities.org/id/metropolitan-district-council/wolverhampton","WAYFAIR STORES LIM","249.12","CIN/CP S17 SW Unit - Area 5","5965","Equipment - Purchase","03/11/2016"
"Wolverhampton City Council","http://opendatacommunities.org/id/metropolitan-district-council/wolverhampton","VERIFONE TAXI/PRIVATE","44.00","CIN/CP S17 SW Unit - Area 5","4121","Client Transport","03/11/2016"
"Wolverhampton City Council","http://opendatacommunities.org/id/metropolitan-district-council/wolverhampton","VERIFONE TAXI/PRIVATE","44.00","CIN/CP S17 SW Unit - Area 5","4121","Client Transport","03/11/2016"
"Wolverhampton City Council","http://opendatacommunities.org/id/metropolitan-district-council/wolverhampton","REGISTRARS OFFICE","60.00","Legal Services","8299","Training Expenses","03/11/2016"
"Wolverhampton City Council","http://opendatacommunities.org/id/metropolitan-district-council/wolverhampton","iZ  direct furnitu","62.50","EIP Locality 3","5999","Equipment - Purchase","03/11/2016"
"Wolverhampton City Council","http://opendatacommunities.org/id/metropolitan-district-council/wolverhampton","iZ  direct furnitu","208.33","EIP Locality 3","5999","Financial Assistance In Exceptional Circ","03/11/2016"
"Wolverhampton City Council","http://opendatacommunities.org/id/metropolitan-district-council/wolverhampton","E.ON ENERGY SOLUTIONS","200.00","CIN/CP S17 SW Unit - Area 5","4900","Electricity","03/11/2016"
"Wolverhampton City Council","http://opendatacommunities.org/id/metropolitan-district-council/wolverhampton","SAINSBURYS","200.00","Childrens with Disabilities Team","6011","Financial Assistance In Exceptional Circ","03/11/2016"
"Wolverhampton City Council","http://opendatacommunities.org/id/metropolitan-district-council/wolverhampton","Virgin Trains","72.00","Payments Team","4112","Public Transport","03/11/2016"
"Wolverhampton City Council","http://opendatacommunities.org/id/metropolitan-district-council/wolverhampton","UXPIN.com, +4869493995","99.54","City Direct","7372","Computing - Purchase of Software","03/11/2016"
"Wolverhampton City Council","http://opendatacommunities.org/id/metropolitan-district-council/wolverhampton","ARGOS LTD","158.94","CIN/CP S17 SW Unit - Area 2","5310","Equipment - Purchase","03/11/2016"
"Wolverhampton City Council","http://opendatacommunities.org/id/metropolitan-district-council/wolverhampton","ARGOS LTD","158.95","CIN/CP S17 SW Unit - Area 2","5310","Equipment - Purchase","03/11/2016"
"Wolverhampton City Council","http://opendatacommunities.org/id/metropolitan-district-council/wolverhampton","ARGOS LTD","158.94","CIN/CP S17 SW Unit - Area 2","5310","Equipment - Purchase","03/11/2016"
"Wolverhampton City Council","http://opendatacommunities.org/id/metropolitan-district-council/wolverhampton","ASDA SUPERSTORE","37.97","LAC Transitions Team","5411","Client Allowances","03/11/2016"
"Wolverhampton City Council","http://opendatacommunities.org/id/metropolitan-district-council/wolverhampton","Amazon UK Marketplace","2.30","Parent / Partnership Service","5942","Equipment - Purchase","03/11/2016"
"Wolverhampton City Council","http://opendatacommunities.org/id/metropolitan-district-council/wolverhampton","SAINSBURYS","50.00","Duke Street Bungalows","6011","Financial Assistance In Exceptional Circ","03/11/2016"
"Wolverhampton City Council","http://opendatacommunities.org/id/metropolitan-district-council/wolverhampton","Amazon UK Marketplace","11.48","Towers Outdoor Education Centre","5942","Equipment - Purchase","03/11/2016"
"Wolverhampton City Council","http://opendatacommunities.org/id/metropolitan-district-council/wolverhampton","ROYAL CARPETS","108.33","46a, Second Avenue, Low Hill","5713","Equipment - Purchase","03/11/2016"
"Wolverhampton City Council","http://opendatacommunities.org/id/metropolitan-district-council/wolverhampton","BCC REGISTER OFFIC","15.00","LAC Team","9399","Financial Assistance In Exceptional Circ","03/11/2016"
"Wolverhampton City Council","http://opendatacommunities.org/id/metropolitan-district-council/wolverhampton","ARGOS LTD","123.94","CIN/CP S17 SW Unit - Area 6","5310","Equipment - Purchase","03/11/2016"
"Wolverhampton City Council","http://opendatacommunities.org/id/metropolitan-district-council/wolverhampton","AMAZON UK RETAIL AMAZO","12.21","Environmental Health - Pub Prot - Gen","5999","Equipment - Purchase","03/11/2016"
"Wolverhampton City Council","http://opendatacommunities.org/id/metropolitan-district-council/wolverhampton","COMARK INSTRUMENTS","406.20","Environmental Health - Pub Prot - Gen","5046","Equipment - Purchase","03/11/2016"
"Wolverhampton City Council","http://opendatacommunities.org/id/metropolitan-district-council/wolverhampton","PAYPAL  SAFETYSUPPL","24.15","Environmental Health - Pub Prot - Gen","5311","Equipment - Purchase","03/11/2016"
"Wolverhampton City Council","http://opendatacommunities.org/id/metropolitan-district-council/wolverhampton","THE RANGE","26.96","Ernest Bold Court","5311","Equipment - Purchase","03/11/2016"
"Wolverhampton City Council","http://opendatacommunities.org/id/metropolitan-district-council/wolverhampton","ARGOS RETAIL GROUP","37.49","LAC Transitions Team","5310","Client Allowances","03/11/2016"
"Wolverhampton City Council","http://opendatacommunities.org/id/metropolitan-district-council/wolverhampton","HUGHES","408.33","LAC Transitions Team","5732","Client Allowances","03/11/2016"
"Wolverhampton City Council","http://opendatacommunities.org/id/metropolitan-district-council/wolverhampton","COSTA","6.20","Headstart Phase 3","8220","Training Expenses","03/11/2016"
"Wolverhampton City Council","http://opendatacommunities.org/id/metropolitan-district-council/wolverhampton","Amazon EU","35.82","Headstart Wolverhampton","5969","Equipment - Purchase","03/11/2016"
"Wolverhampton City Council","http://opendatacommunities.org/id/metropolitan-district-council/wolverhampton","Amazon EU","132.50","Headstart Wolverhampton","5969","Equipment - Purchase","03/11/2016"
"Wolverhampton City Council","http://opendatacommunities.org/id/metropolitan-district-council/wolverhampton","Amazon UK Marketplace","25.83","Headstart Wolverhampton","5942","Equipment - Purchase","03/11/2016"
"Wolverhampton City Council","http://opendatacommunities.org/id/metropolitan-district-council/wolverhampton","Amazon UK Marketplace","46.50","Headstart Wolverhampton","5942","Equipment - Purchase","03/11/2016"
"Wolverhampton City Council","http://opendatacommunities.org/id/metropolitan-district-council/wolverhampton","Amazon UK Marketplace","19.98","Headstart","5942","Books","03/11/2016"
"Wolverhampton City Council","http://opendatacommunities.org/id/metropolitan-district-council/wolverhampton","Amazon UK Marketplace","540.33","Headstart Phase 3","5942","Equipment - Purchase","03/11/2016"
"Wolverhampton City Council","http://opendatacommunities.org/id/metropolitan-district-council/wolverhampton","WICKES BUILDING","8.32","Safeguarding Admin Resource","5211","Materials","03/11/2016"
"Wolverhampton City Council","http://opendatacommunities.org/id/metropolitan-district-council/wolverhampton","ARGOS LTD","158.95","CIN/CP S17 SW Unit - Area 2","5310","Equipment - Purchase","03/11/2016"
"Wolverhampton City Council","http://opendatacommunities.org/id/metropolitan-district-council/wolverhampton","POST OFFICE COUNTER","6.45","EIP Locality 4","9402","Comms - Postage","03/11/2016"
"Wolverhampton City Council","http://opendatacommunities.org/id/metropolitan-district-council/wolverhampton","WM MORRISONS","20.55","Upper Pendeford Farm Childrens Home","5411","Provisions (Not for resale)","03/11/2016"
"Wolverhampton City Council","http://opendatacommunities.org/id/metropolitan-district-council/wolverhampton","Amazon UK Marketplace","5.46","Mayoral Expenses","5942","Equipment - Purchase","02/11/2016"
"Wolverhampton City Council","http://opendatacommunities.org/id/metropolitan-district-council/wolverhampton","TESCO STORES 5194","72.83","Towers Outdoor Education Centre","5411","Provisions (Not for resale)","02/11/2016"
"Wolverhampton City Council","http://opendatacommunities.org/id/metropolitan-district-council/wolverhampton","Amazon UK Marketplace","9.03","Towers Outdoor Education Centre","5942","Equipment - Purchase","02/11/2016"
"Wolverhampton City Council","http://opendatacommunities.org/id/metropolitan-district-council/wolverhampton","Amazon UK Marketplace","24.17","Towers Outdoor Education Centre","5942","Equipment - Purchase","02/11/2016"
"Wolverhampton City Council","http://opendatacommunities.org/id/metropolitan-district-council/wolverhampton","1&1 INTERNET LIMITED","73.86","Learning Technologies","4816","Computing - Purchase of Software","02/11/2016"
"Wolverhampton City Council","http://opendatacommunities.org/id/metropolitan-district-council/wolverhampton","Amazon UK Marketplace","5.18","Global Budgets","5942","Books","02/11/2016"
"Wolverhampton City Council","http://opendatacommunities.org/id/metropolitan-district-council/wolverhampton","Trainline.com Ltd","192.78","Head of Corporate Landlord","4112","Public Transport","02/11/2016"
"Wolverhampton City Council","http://opendatacommunities.org/id/metropolitan-district-council/wolverhampton","ASDA 4387","94.58","EIP Locality 4","5411","Provisions (Not for resale)","02/11/2016"
"Wolverhampton City Council","http://opendatacommunities.org/id/metropolitan-district-council/wolverhampton","Amazon UK Marketplace","70.82","EIP Locality 4","5942","Equipment - Purchase","02/11/2016"
"Wolverhampton City Council","http://opendatacommunities.org/id/metropolitan-district-council/wolverhampton","OYSTER RENEW WEB","25.00","Delivery & OCE Development","4112","Public Transport","02/11/2016"
"Wolverhampton City Council","http://opendatacommunities.org/id/metropolitan-district-council/wolverhampton","Virgin Trains","169.90","LAC Team","4112","Public Transport","02/11/2016"
"Wolverhampton City Council","http://opendatacommunities.org/id/metropolitan-district-council/wolverhampton","Virgin Trains","18.40","Strategic Asset Management - General","4112","Public Transport","02/11/2016"
"Wolverhampton City Council","http://opendatacommunities.org/id/metropolitan-district-council/wolverhampton","THE POST OFFICE","230.00","Connexions Contract","9402","Provisions (Not for resale)","02/11/2016"
"Wolverhampton City Council","http://opendatacommunities.org/id/metropolitan-district-council/wolverhampton","Amazon UK Marketplace","33.98","Parent / Partnership Service","5942","Comms - Postage","02/11/2016"
"Wolverhampton City Council","http://opendatacommunities.org/id/metropolitan-district-council/wolverhampton","SCREWFIX DIRECT LT","12.12","Cleaning of Buildings - General","5211","Materials","02/11/2016"
"Wolverhampton City Council","http://opendatacommunities.org/id/metropolitan-district-council/wolverhampton","NOTEMACHINE","60.00","EIP Locality 1","6011","Financial Assistance In Exceptional Circ","02/11/2016"
"Wolverhampton City Council","http://opendatacommunities.org/id/metropolitan-district-council/wolverhampton","GRO HM PASSPORT OFFICE","-9.25","LAC Team","9399","Financial Assistance In Exceptional Circ","02/11/2016"
"Wolverhampton City Council","http://opendatacommunities.org/id/metropolitan-district-council/wolverhampton","Trainline.com Ltd","181.40","LAC Team","4112","Public Transport","02/11/2016"
"Wolverhampton City Council","http://opendatacommunities.org/id/metropolitan-district-council/wolverhampton","NOTEMACHINE","200.00","CIN/CP S17 SW Unit - Area 6","6011","Financial Assistance In Exceptional Circ","02/11/2016"
"Wolverhampton City Council","http://opendatacommunities.org/id/metropolitan-district-council/wolverhampton","BARCLAYS BANK PLC","20.00","Inclusion Support","6011","Financial Assistance In Exceptional Circ","02/11/2016"
"Wolverhampton City Council","http://opendatacommunities.org/id/metropolitan-district-council/wolverhampton","Trainline.com Ltd","85.10","Environmental Health - Pub Prot - Gen","4112","Services - Fees and Charges","02/11/2016"
"Wolverhampton City Council","http://opendatacommunities.org/id/metropolitan-district-council/wolverhampton","Amazon UK Marketplace","10.29","Environmental Health - Pub Prot - Gen","5942","Equipment - Purchase","02/11/2016"
"Wolverhampton City Council","http://opendatacommunities.org/id/metropolitan-district-council/wolverhampton","Amazon Svcs Europe,SAR","16.80","Environmental Health - Pub Prot - Gen","5942","Equipment - Purchase","02/11/2016"
"Wolverhampton City Council","http://opendatacommunities.org/id/metropolitan-district-council/wolverhampton","EVENT FURNITURE LIMITE","-200.00","Civic Hall Out-house Promotions","7394","Equipment - Hire","02/11/2016"
"Wolverhampton City Council","http://opendatacommunities.org/id/metropolitan-district-council/wolverhampton","Virgin Trains","96.60","Information Management","4112","Public Transport","02/11/2016"
"Wolverhampton City Council","http://opendatacommunities.org/id/metropolitan-district-council/wolverhampton","GRO HM PASSPORT OFFICE","-23.40","Legal Services","9399","Services - Fees and Charges","02/11/2016"
"Wolverhampton City Council","http://opendatacommunities.org/id/metropolitan-district-council/wolverhampton","Trainline","182.58","Legal Services","4112","Public Transport","02/11/2016"
"Wolverhampton City Council","http://opendatacommunities.org/id/metropolitan-district-council/wolverhampton","G & M HALE LTD","77.55","Creative Studies Delivery Area","5992","Materials","02/11/2016"
"Wolverhampton City Council","http://opendatacommunities.org/id/metropolitan-district-council/wolverhampton","G & M HALE LTD","139.60","Discretionary Fund","5992","Materials","02/11/2016"
"Wolverhampton City Council","http://opendatacommunities.org/id/metropolitan-district-council/wolverhampton","Cross Country Trains","122.90","School Improvement","4112","Public Transport","02/11/2016"
"Wolverhampton City Council","http://opendatacommunities.org/id/metropolitan-district-council/wolverhampton","Cross Country Trains","34.90","School Improvement","4112","Public Transport","02/11/2016"
"Wolverhampton City Council","http://opendatacommunities.org/id/metropolitan-district-council/wolverhampton","Trainline.com Ltd","441.00","HR Advice","4112","Public Transport","02/11/2016"
"Wolverhampton City Council","http://opendatacommunities.org/id/metropolitan-district-council/wolverhampton","Trainline.com Ltd","15.30","Agresso System Support","4112","Public Transport","02/11/2016"
"Wolverhampton City Council","http://opendatacommunities.org/id/metropolitan-district-council/wolverhampton","WICKES","13.33","Street Cleansing Overheads","5211","Equipment - Purchase","02/11/2016"
"Wolverhampton City Council","http://opendatacommunities.org/id/metropolitan-district-council/wolverhampton","PREMIER INN","399.50","Adoption and Residence Team & Allowances","3811","Accommodation Costs","02/11/2016"
"Wolverhampton City Council","http://opendatacommunities.org/id/metropolitan-district-council/wolverhampton","Trainline","124.13","Adoption and Residence Team & Allowances","4112","Public Transport","02/11/2016"
"Wolverhampton City Council","http://opendatacommunities.org/id/metropolitan-district-council/wolverhampton","Amazon UK Marketplace","22.42","CIN/CP Social Work Unit - Area 3A","5942","Stationery","01/11/2016"
"Wolverhampton City Council","http://opendatacommunities.org/id/metropolitan-district-council/wolverhampton","YOUNG`S SHOE REPAIRS L","16.00","Wolverhampton Indoor and Open Market","7251","Fixtures and Fittings - R&M","01/11/2016"
"Wolverhampton City Council","http://opendatacommunities.org/id/metropolitan-district-council/wolverhampton","CURRYS ONLINE","56.94","Towers Outdoor Education Centre","5732","Equipment - Purchase","01/11/2016"
"Wolverhampton City Council","http://opendatacommunities.org/id/metropolitan-district-council/wolverhampton","Amazon UK Marketplace","24.97","Towers Outdoor Education Centre","5942","Equipment - Purchase","01/11/2016"
"Wolverhampton City Council","http://opendatacommunities.org/id/metropolitan-district-council/wolverhampton","Amazon UK Marketplace","408.25","Towers Outdoor Education Centre","5942","Books","01/11/2016"
"Wolverhampton City Council","http://opendatacommunities.org/id/metropolitan-district-council/wolverhampton","FACTOR 21 PLC","295.00","Education Catering - General Overheads","7299","Marketing \ Non-staff advertising","01/11/2016"
"Wolverhampton City Council","http://opendatacommunities.org/id/metropolitan-district-council/wolverhampton","THE NEWBURY HOTEL","70.00","LAC Team","7011","Services - Supplies & Services to users","01/11/2016"
"Wolverhampton City Council","http://opendatacommunities.org/id/metropolitan-district-council/wolverhampton","FACEBK 5XNQQ96C22","42.99","College of Further Education","7311","Marketing \ Non-staff advertising","01/11/2016"
"Wolverhampton City Council","http://opendatacommunities.org/id/metropolitan-district-council/wolverhampton","FACEBK 4XNQQ96C22","162.60","College of Further Education","7311","Marketing \ Non-staff advertising","01/11/2016"
"Wolverhampton City Council","http://opendatacommunities.org/id/metropolitan-district-council/wolverhampton","Amazon UK Marketplace","11.52","Environmental Health - Pub Prot - Gen","5942","Equipment - Purchase","01/11/2016"
"Wolverhampton City Council","http://opendatacommunities.org/id/metropolitan-district-council/wolverhampton","Amazon UK Marketplace","41.63","Environmental Health - Pub Prot - Gen","5942","Equipment - Purchase","01/11/2016"
"Wolverhampton City Council","http://opendatacommunities.org/id/metropolitan-district-council/wolverhampton","ARGOS RETAIL GROUP","291.66","Civic Halls Non Direct Management A/C","5310","Equipment - Purchase","01/11/2016"
"Wolverhampton City Council","http://opendatacommunities.org/id/metropolitan-district-council/wolverhampton","FACEBK LL3PP9WE92","148.50","Civic Halls Non Direct Management A/C","7311","Marketing \ Non-staff advertising","01/11/2016"
"Wolverhampton City Council","http://opendatacommunities.org/id/metropolitan-district-council/wolverhampton","FACEBK KL3PP9WE92","334.15","Civic Halls Non Direct Management A/C","7311","Marketing \ Non-staff advertising","01/11/2016"
"Wolverhampton City Council","http://opendatacommunities.org/id/metropolitan-district-council/wolverhampton","MCAFEE  INTEL SECURITY","31.99","Civic Halls Non Direct Management A/C","5968","Subscriptions","01/11/2016"
"Wolverhampton City Council","http://opendatacommunities.org/id/metropolitan-district-council/wolverhampton","CT WOLVERHAMPTON","127.50","CIN/CP S17 SW Unit - Area 7","8398","Services - Supplies & Services to users","01/11/2016"
"Wolverhampton City Council","http://opendatacommunities.org/id/metropolitan-district-council/wolverhampton","ASDA HOME SHOPPING","-0.79","Ernest Bold Court","5411","Provisions (Not for resale)","01/11/2016"
"Wolverhampton City Council","http://opendatacommunities.org/id/metropolitan-district-council/wolverhampton","ASDA HOME SHOPPING","74.84","Ernest Bold Court","5411","Provisions (Not for resale)","01/11/2016"
"Wolverhampton City Council","http://opendatacommunities.org/id/metropolitan-district-council/wolverhampton","THE POST OFFICE","220.00","European Liaison","9402","Financial Assistance In Exceptional Circ","01/11/2016"
"Wolverhampton City Council","http://opendatacommunities.org/id/metropolitan-district-council/wolverhampton","GRO HM PASSPORT OFFICE","23.40","Legal Services","9399","Services - Fees and Charges","01/11/2016"
"Wolverhampton City Council","http://opendatacommunities.org/id/metropolitan-district-council/wolverhampton","G & M HALE (SUNDRIES)","5.90","Discretionary Fund","5992","Materials","01/11/2016"
"Wolverhampton City Council","http://opendatacommunities.org/id/metropolitan-district-council/wolverhampton","G & M HALE (SUNDRIES)","21.65","Creative Studies Delivery Area","5992","Materials for resale","01/11/2016"
"Wolverhampton City Council","http://opendatacommunities.org/id/metropolitan-district-council/wolverhampton","G & M HALE LTD","40.00","Discretionary Fund","5992","Materials","01/11/2016"
"Wolverhampton City Council","http://opendatacommunities.org/id/metropolitan-district-council/wolverhampton","G & M HALE LTD","6.20","Creative Studies Delivery Area","5992","Materials","01/11/2016"
"Wolverhampton City Council","http://opendatacommunities.org/id/metropolitan-district-council/wolverhampton","BLOOMS MENSWEAR","25.00","Mayoral Expenses","5611","Clothing / Uniforms","01/11/2016"
"Wolverhampton City Council","http://opendatacommunities.org/id/metropolitan-district-council/wolverhampton","ASDA SUPERSTORE","12.75","CIN/CP S17 SW Unit - Area 5","5411","Provisions (Not for resale)","01/11/2016"
"Wolverhampton City Council","http://opendatacommunities.org/id/metropolitan-district-council/wolverhampton","ASDA SUPERSTORE","22.00","CIN/CP S17 SW Unit - Area 5","5411","Provisions (Not for resale)","01/11/2016"
"Wolverhampton City Council","http://opendatacommunities.org/id/metropolitan-district-council/wolverhampton","ASDA SUPERSTORE","26.25","CIN/CP S17 SW Unit - Area 5","5411","Provisions (Not for resale)","01/11/2016"
"Wolverhampton City Council","http://opendatacommunities.org/id/metropolitan-district-council/wolverhampton","TRAVELODGE","65.79","Adoption and Residence Team & Allowances","3615","Accommodation Costs","01/11/2016"
"Wolverhampton City Council","http://opendatacommunities.org/id/metropolitan-district-council/wolverhampton","GRADUATIONATTIRELTD","31.25","Members Expenses","5641","Equipment - Purchase","01/11/2016"
"Wolverhampton City Council","http://opendatacommunities.org/id/metropolitan-district-council/wolverhampton","NETWORK WEST MIDLANDS","53.00","European Liaison","9399","Financial Assistance In Exceptional Circ","01/11/2016"
"Wolverhampton City Council","http://opendatacommunities.org/id/metropolitan-district-council/wolverhampton","FACEBK DV38M9JB92","12.78","Communications & Marketing - General","7311","Marketing \ Non-staff advertising","01/11/2016"
"Wolverhampton City Council","http://opendatacommunities.org/id/metropolitan-district-council/wolverhampton","FACEBK 9FTHJ9SA82","65.18","WV Active Business Support","7311","Marketing \ Non-staff advertising","01/11/2016"
"Wolverhampton City Council","http://opendatacommunities.org/id/metropolitan-district-council/wolverhampton","FACEBK 8FTHJ9SA82","106.06","WV Active Business Support","7311","Marketing \ Non-staff advertising","01/11/2016"
"Wolverhampton City Council","http://opendatacommunities.org/id/metropolitan-district-council/wolverhampton","E01510300000000","40.00","Emergency Duty Team","6011","Financial Assistance In Exceptional Circ","01/11/2016"
"Wolverhampton City Council","http://opendatacommunities.org/id/metropolitan-district-council/wolverhampton","W M MORRISONS.COM","96.76","Discretionary Fund","5411","Materials","01/11/2016"
